Workbook

Sheet Setup
A1: ΤΟΥΡΝΟΥΑ QD 32►8, MD 32
E2: Qual seeded | K2: M.D. seeded | N2: M.D. others
A3: Διοργανωτής: | B3: ΕΦΟΑ | F3: seed 1 | G3: seed 2 | H3: Spaces | K3: Θέσεις | L3: seed | N3: 0 | O3: seed | P3: Spaces | Q3: Index | R3: Value
A4: Τίτλος Τουρνουά: | B4: 1ο Ε2 2014 | E4: 8 seeded | F4: 1 | G4: =VALUE(MID($A$34,1,H4-1)) -> 0 | H4: =FIND(" ",$A$34,1) -> 2 | K4: 3-4 | L4: =VALUE(LEFT(A45,1)) -> 4 | N4: =IF(O4="-","-",IF(O4>0,N3+1,0)) -> 0 | O4: =IF(P4>0,VALUE(MID($A$46,1,P4-1)),"-") -> 0 | P4: =IF(LEN($A$46)>1,FIND(" ",$A$46,1),0) -> 2 | Q4: 0 | R4: 0
A5: type: | B5: e2-12 | F5: 2 | G5: =VALUE(MID($A$34,H4+1,H5-H4-1)) -> 0 | H5: =FIND(" ",$A$34,H4+1) -> 4 | L5: =VALUE(RIGHT(A45,1)) -> 3 | N5: =IF(O5="-","-",IF(O5>0,N4+1,0)) -> 0 | O5: =IF(P5>0,VALUE(MID($A$46,P4+1,P5-P4-1)),"-") -> 0 | P5: =IF(AND(P4>0,LEN($A$46)>P4+1),FIND(" ",$A$46,P4+1),0) -> 4 | Q5: 0 | R5: 0
A6: Έδρα αγώνων: | B6: ΗΡΑΚΛΕΙΟ Ο.Α. & Α | F6: 3 | G6: 0 | H6: 6 | K6: Θέσεις | L6: seed | N6: =IF(O6="-","-",IF(O6>0,N5+1,0)) -> 0 | O6: 0 | P6: 6 | Q6: 0 | R6: 0
A7: Κατηγορία: | B7: Α16 | F7: 4 | G7: 0 | H7: 8 | K7: 5-8 | L7: =TRIM(LEFT(B45,(FIND(" ",B45,1)-1))) -> 5 | N7: =IF(O7="-","-",IF(O7>0,N6+1,0)) -> 0 | O7: 0 | P7: 8 | Q7: 0 | R7: 0
A8: Έναρξη: | B8: 28 Φεβρουαρίου | F8: 5 | G8: 0 | H8: 10 | L8: =TRIM(MID(B45,(FIND(" ",B45,1)),FIND(" ",B45,(FIND(" ",B45,1)+1))-(FIND(" ",B45,1)))) -> 8 | N8: =IF(O8="-","-",IF(O8>0,N7+1,0)) -> 0 | O8: 0 | P8: 10 | Q8: 0 | R8: 0
A9: Λήξη: | B9: 4 Μαρτίου | F9: 6 | G9: 0 | H9: 12 | L9: =TRIM(MID(B45, (FIND(" ",B45,(FIND(" ",B45,1)+1))+1), (FIND(" ",B45,(FIND(" ",B45,(FIND(" ",B45,1)+1))+1)))-(FIND(" ",B45,(FIND(" ",B45,1)+1))+1))) -> 6 | N9: =IF(O9="-","-",IF(O9>0,N8+1,0)) -> 0 | O9: 0 | P9: 12 | Q9: 0 | R9: 0
A10: Επιδιατητής: | B10: Νικηφοράκης Σταύρος | F10: 7 | G10: 10 | H10: 15 | L10: =TRIM(RIGHT(B45,LEN(B45)-(FIND(" ",B45,(FIND(" ",B45,(FIND(" ",B45,1)+1))+1))))) -> 7 | N10: 1 | O10: 1 | P10: 14 | Q10: 1 | R10: 1
A11: Τηλέφωνο επιδ: | B11: 6974-735923 | F11: 8 | G11: 9 | H11: 17 | N11: 2 | O11: 2 | P11: 16 | Q11: 2 | R11: 2
N12: 3 | O12: 3 | P12: 18 | Q12: 3 | R12: 3
E13: Qual others | N13: 4 | O13: 4 | P13: 20 | Q13: 4 | R13: 4
A14: Qual Draw | B14: ="("&COUNTBLANK('AL QD'!D3:D34)&")" -> (32) | E14: 16 | F14: seed | G14: Spaces | H14: Index | I14: Value | N14: =IF(O14="-","-",IF(O14>0,N13+1,0)) -> 5 | O14: 5 | P14: 22 | Q14: 5 | R14: 5
A15: Πλήθος bye (0-24): | B15: =COUNTBLANK('AL QD'!D3:D34) -> 32 | E15: =IF(F15=0,0,$E$14+1) -> 0 | F15: =VALUE(MID($A$36,1,G15-1)) -> 0 | G15: =IF(LEN($A$36)>1,FIND(" ",$A$36,1),0) -> 2 | H15: 0 | I15: 0 | N15: 6 | O15: 6 | P15: 24 | Q15: 6 | R15: 6
A16: Αριθμός θέσεων seeded: | B16: 8 | E16: =IF(F16=0,0,IF(E15>0,E15+1,$E$14+1)) -> 0 | F16: =VALUE(MID($A$36,G15+1,G16-G15-1)) -> 0 | G16: =IF(AND(G15>0,LEN($A$36)>G15+1),FIND(" ",$A$36,G15+1),0) -> 4 | H16: 0 | I16: 0 | N16: 7 | O16: 7 | P16: 26 | Q16: 7 | R16: 7
A17: Main Draw | B17: ="("&COUNTBLANK('AL MD'!$D$3:$D$34)&")" -> (6) | E17: =IF(F17=0,0,IF(E16>0,E16+1,$E$14+1)) -> 0 | F17: 0 | G17: 6 | H17: 0 | I17: 0 | N17: 8 | O17: 8 | P17: 28 | Q17: 8 | R17: 8
A18: Πλήθος bye (0-15): | B18: =COUNTBLANK('AL MD'!$D$3:$D$34) -> 6 | E18: =IF(F18=0,0,IF(E17>0,E17+1,$E$14+1)) -> 0 | F18: 0 | G18: 8 | H18: 0 | I18: 0 | N18: 9 | O18: 19 | P18: 31 | Q18: 9 | R18: 19
A19: Αριθμός θέσεων seeded: | B19: 8 | E19: =IF(F19=0,0,IF(E18>0,E18+1,$E$14+1)) -> 0 | F19: 0 | G19: 10 | H19: 0 | I19: 0 | N19: 10 | O19: 10 | P19: 34 | Q19: 10 | R19: 10
E20: 0 | F20: 0 | G20: 12 | H20: 0 | I20: 0 | N20: 11 | O20: 9 | P20: 36 | Q20: 11 | R20: 9
E21: 0 | F21: 0 | G21: 14 | H21: 0 | I21: 0 | N21: 12 | O21: 17 | P21: 39 | Q21: 12 | R21: 17
E22: 0 | F22: 0 | G22: 16 | H22: 0 | I22: 0 | N22: 13 | O22: 16 | P22: 42 | Q22: 13 | R22: 16
A23: qd (# για off) | B23: # | E23: 0 | F23: 0 | G23: 18 | H23: 0 | I23: 0 | N23: 14 | O23: 20 | P23: 45 | Q23: 14 | R23: 20
A24: md (# για off) | B24: ok | E24: 0 | F24: 0 | G24: 20 | H24: 0 | I24: 0 | N24: 15 | O24: 21 | P24: 48 | Q24: 15 | R24: 21
A25: md16 (# για off) | B25: # | E25: 0 | F25: 0 | G25: 22 | H25: 0 | I25: 0 | N25: 16 | O25: 25 | P25: 51 | Q25: 16 | R25: 25
E26: 0 | F26: 0 | G26: 24 | H26: 0 | I26: 0 | N26: 17 | O26: 13 | P26: 54 | Q26: 17 | R26: 13
E27: 0 | F27: 0 | G27: 26 | H27: 0 | I27: 0 | N27: 18 | O27: 23 | P27: 57 | Q27: 18 | R27: 23
E28: 0 | F28: 0 | G28: 28 | H28: 0 | I28: 0 | N28: 19 | O28: 22 | P28: 60 | Q28: 19 | R28: 22
A29: =VLOOKUP($B$15,$E$33:$G$57,2) -> 0 | B29: =VLOOKUP($B$15,$E$33:$G$57,3) -> 0 | E29: 0 | F29: 0 | G29: 30 | H29: 0 | I29: 0 | N29: 20 | O29: 12 | P29: 63 | Q29: 20 | R29: 12
A30: =IF(A29>0,LEFT(A37,(8-A29)*2) & RandUniq(9,8+A29,A29),LEFT(A37,8*2)) & " " -> 0 0 0 0 0 0 0 0 | E30: 0 | F30: 0 | G30: 32 | H30: 0 | I30: 0 | N30: 21 | O30: 26 | P30: 66 | Q30: 21 | R30: 26
A31: =IF(B29>0,(LEFT(A37,(16-B29)*2)&RandUniq(17,16+B29,B29)),LEFT(A37,16*2))&" " -> 0 0 0 0 0 0 0 0 0 0 0 0 0 0 0 0 | N31: 22 | O31: 14 | P31: 69 | Q31: 22 | R31: 14
E32: bye | F32: seed2 | G32: other | N32: 23 | O32: 18 | P32: 72 | Q32: 23 | R32: 18
A33: QD | E33: 0 | F33: 8 | G33: 16 | N33: 24 | O33: 15 | P33: 75 | Q33: 24 | R33: 15
A34: 0 0 0 0 0 0 10 9 | E34: 1 | F34: 8 | G34: 15 | N34: 25 | O34: 11 | P34: 78 | Q34: 25 | R34: 11
A35: 0 0 0 0 0 0 0 0 | E35: 2 | F35: 8 | G35: 14 | N35: 26 | O35: 24 | P35: 81 | Q35: 26 | R35: 24
A36: 0 0 0 0 0 0 0 0 0 0 0 0 0 0 0 0 | E36: 3 | F36: 8 | G36: 13
A37: 0 0 0 0 0 0 0 0 0 0 0 0 0 0 0 0 0 0 0 0 0 0 0 0 0 0 0 0 0 0 0 0 | E37: 4 | F37: 8 | G37: 12
E38: 5 | F38: 8 | G38: 11
E39: 6 | F39: 8 | G39: 10
A40: =RandUniq(3;4;2) | E40: 7 | F40: 8 | G40: 9
A41: =RandUniq(5;8;4) | E41: 8 | F41: 8 | G41: 8
A42: =LEFT($A$48;$B$18*2) & LEFT($A$47;$B$19*2) & RandUniq($B$19+1;32-$B$18;32-$B$19-$B$18) & " " | E42: 9 | F42: 8 | G42: 7
E43: 10 | F43: 8 | G43: 6
A44: MD | E44: 11 | F44: 8 | G44: 5
A45: 4 3 | B45: 5 8 6 7 | E45: 12 | F45: 8 | G45: 4
A46: 0 0 0 0 0 0 1 2 3 4 5 6 7 8 19 10 9 17 16 20 21 25 13 23 22 12 26 14 18 15 11 24 | E46: 13 | F46: 8 | G46: 3
A47: 1 2 3 4 5 6 7 8 | E47: 14 | F47: 8 | G47: 2
A48: 0 0 0 0 0 0 0 0 0 0 0 0 0 0 0 0 0 0 0 0 0 0 0 0 0 0 0 0 0 0 0 0 0 0 0 0 0 0 0 0 0 0 0 0 0 0 0 0 | E48: 15 | F48: 8 | G48: 1
E49: 16 | F49: 8 | G49: 0
E50: 17 | F50: 7 | G50: 0
E51: 18 | F51: 6 | G51: 0
E52: 19 | F52: 5 | G52: 0
E53: 20 | F53: 4 | G53: 0
E54: 21 | F54: 3 | G54: 0
E55: 22 | F55: 2 | G55: 0
E56: 23 | F56: 1 | G56: 0
E57: 24 | F57: 0 | G57: 0
A60: 16άρι ταμπλό | D60: Θέσεις | E60: seed
D61: 3-4 | E61: =VALUE(LEFT(F61,1)) -> 4 | F61: 4 3
A62: Διοργανωτής: | B62: =B3 -> ΕΦΟΑ | E62: =VALUE(RIGHT(F61,1)) -> 3
A63: Τίτλος Τουρνουά: | B63: =B4 -> 1ο Ε2 2014
A64: type: | B64: e2-12
A65: Έδρα αγώνων: | B65: ΗΡΑΚΛΕΙΟ Ο.Α. & Α
A66: Κατηγορία: | B66: Α16 | D66: 1 2 3 4 6 12 11 5 7 9 15 16 14 8 13 10
A67: Έναρξη: | B67: 28 Φεβρουαρίου | D67: 1 2 3 4
A68: Λήξη: | B68: 4 Μαρτίου | D68: 0 0 0 0 0 0 0 0 0 0 0 0 0 0 0 0 0 0 0 0 0 0 0 0 0 0 0 0 0 0 0 0 0 0 0 0 0 0 0 0
A69: Επιδιατητής: | B69: Νικηφοράκης Σταύρος
A70: Τηλέφωνο επιδ: | B70: 6974-735923 | D70: 0 | E70: seed | F70: space pos | G70: Index | H70: Value
D71: =IF(E71="-","-",IF(E71>0,D70+1,0)) -> 1 | E71: =IF(F71>0,VALUE(MID($D$66,1,F71-1)),"-") -> 1 | F71: =IF(LEN($D$66)>1,FIND(" ",$D$66,1),0) -> 2 | G71: 1 | H71: 1
D72: =IF(E72="-","-",IF(E72>0,D71+1,0)) -> 2 | E72: =IF(F72>0,VALUE(MID($D$66,F71+1,F72-F71-1)),"-") -> 2 | F72: =IF(AND(F71>0,LEN($D$66)>F71+1),FIND(" ",$D$66,F71+1),0) -> 4 | G72: 2 | H72: 2
D73: =IF(E73="-","-",IF(E73>0,D72+1,0)) -> 3 | E73: 3 | F73: 6 | G73: 3 | H73: 3
D74: =IF(E74="-","-",IF(E74>0,D73+1,0)) -> 4 | E74: 4 | F74: 8 | G74: 4 | H74: 4
D75: 5 | E75: 6 | F75: 10 | G75: 5 | H75: 6
A76: Main Draw | B76: ="("&COUNTBLANK('AL MD'!$D$3:$D$18)&")" -> (0) | D76: 6 | E76: 12 | F76: 13 | G76: 6 | H76: 12
A77: Πλήθος bye (0-7): | B77: =COUNTBLANK('AL MD'!$D$3:$D$18) -> 0 | D77: 7 | E77: 11 | F77: 16 | G77: 7 | H77: 11
A78: Αριθμός θέσεων seeded: | B78: 4 | D78: 8 | E78: 5 | F78: 18 | G78: 8 | H78: 5
D79: 9 | E79: 7 | F79: 20 | G79: 9 | H79: 7
D80: 10 | E80: 9 | F80: 22 | G80: 10 | H80: 9
D81: 11 | E81: 15 | F81: 25 | G81: 11 | H81: 15
D82: 12 | E82: 16 | F82: 28 | G82: 12 | H82: 16
A83: md (# για off) | B83: ok | D83: 13 | E83: 14 | F83: 31 | G83: 13 | H83: 14
D84: 14 | E84: 8 | F84: 33 | G84: 14 | H84: 8
D85: 15 | E85: 13 | F85: 36 | G85: 15 | H85: 13
A86: =RandUniq(3;4;2) | D86: 16 | E86: 10 | F86: 39 | G86: 16 | H86: 10
A88: =LEFT($D$68;$B$77*2)&LEFT($D$67;$B$78*2)&RandUniq($B$78+1;16-$B$77;16-$B$78-$B$77)&" "

Sheet AL QD
A1: =Setup!$B$3 & ", " & Setup!$B$4 & ", " & Setup!$B$6 & ", " & Setup!$B$8 & "-" & Setup!$B$9 -> ΕΦΟΑ, 1ο Ε2 2014, ΗΡΑΚΛΕΙΟ Ο.Α. & Α, 28 Φεβρουαρίου-4 Μαρτίου | H1: =Setup!$B$7 -> Α16
A2: α/α | C2: Α.Μ. | D2: Ονοματεπώνυμο | E2: Σύλλογος | F2: βαθμ. | G2: Τηλέφωνο | H2: Υπογραφή | I2: srtPts | J2: rand
A3: 1 | I3: =IF(C3="",0,F3+J3) -> 0 | J3: 0.01577252463
A4: 2 | I4: 0 | J4: 0.01020506894
A5: 3 | I5: 0 | J5: 0.01088341321
A6: 4 | I6: 0 | J6: 0.003083300148
A7: 5 | I7: 0 | J7: 0.02937021017
A8: 6 | I8: 0 | J8: 0.02189081216
A9: 7 | I9: 0 | J9: 0.03145638488
A10: 8 | I10: 0 | J10: 0.001318094498
A11: 9 | I11: 0 | J11: 0.03858737664
A12: 10 | I12: 0 | J12: 9.640918465e-05
A13: 11 | I13: 0 | J13: 0.01688797195
A14: 12 | I14: 0 | J14: 0.000357744313
A15: 13 | I15: 0 | J15: 0.01417343274
A16: 14 | I16: 0 | J16: 0.03544859864
A17: 15 | I17: 0 | J17: 0.01378646455
A18: 16 | I18: 0 | J18: 0.02338188633
A19: 17 | I19: 0 | J19: 0.01721984316
A20: 18 | F20: 0 | I20: 0 | J20: 0.01141768198
A21: 19 | F21: 0 | I21: 0 | J21: 0.03777510582
A22: 20 | F22: 0 | I22: 0 | J22: 0.005091753811
A23: 21 | F23: 0 | I23: 0 | J23: 0.002670128065
A24: 22 | F24: 0 | I24: 0 | J24: 0.007775769585
A25: 23 | F25: 0 | I25: 0 | J25: 0.02432978728
A26: 24 | F26: 0 | I26: 0 | J26: 0.02045076903
A27: 25 | F27: 0 | I27: 0 | J27: 0.02093911541
A28: 26 | F28: 0 | I28: 0 | J28: 0.006392961615
A29: 27 | F29: 0 | I29: 0 | J29: 0.01122863323
A30: 28 | F30: 0 | I30: 0 | J30: 0.02278996427
A31: 29 | F31: 0 | I31: 0 | J31: 0.0124108006
A32: 30 | F32: 0 | I32: 0 | J32: 0.03673777971
A33: 31 | F33: 0 | I33: 0 | J33: 0.0313128625
A34: 32 | F34: 0 | I34: 0 | J34: 0.00149897011
B36: Walk over
B37: α/α | C37: Α.Μ. | D37: Ονοματεπώνυμο | E37: med (Ν ή Ο)
B38: 1
B39: 2
B40: 3
B41: 4 | G41: επιδιαιτητής
B42: 5 | G42: =Setup!B10 -> Νικηφοράκης Σταύρος

Sheet AL MD
A1: =Setup!$B$3 & ", " & Setup!$B$4 & ", " & Setup!$B$6 & ", " & Setup!$B$8 & "-" & Setup!$B$9 -> ΕΦΟΑ, 1ο Ε2 2014, ΗΡΑΚΛΕΙΟ Ο.Α. & Α, 28 Φεβρουαρίου-4 Μαρτίου | H1: =Setup!$B$7 -> Α16
A2: α/α | B2: από | C2: Α.Μ. | D2: Ονοματεπώνυμο | E2: Σύλλογος | F2: βαθμ. | G2: Τηλέφωνο | H2: Υπογραφή | I2: srtPts | J2: rand
A3: 1 | C3: 26317 | D3: ΚΩΣΤΑΡΑΣ ΠΑΝΑΓΙΩΤΗΣ | E3: Ο.Α.ΠΕΤΡΟΥΠΟΛΗΣ | F3: 646 | I3: =IF(C3="",0,F3+J3) -> 646.024458 | J3: 0.02445798149
A4: 2 | C4: 25297 | D4: ΚΑΠΙΡΗΣ ΣΤΑΜΑΤΗΣ | E4: Α.Ο.Α.ΗΛΙΟΥΠΟΛΗΣ | F4: 506 | I4: 506.0040647 | J4: 0.004064698854
A5: 3 | C5: 30186 | D5: ΠΙΤΣΙΝΗΣ ΔΗΜΗΤΡΙΟΣ | E5: Ο.Α.ΚΕΡΑΤΣΙΝΙΟΥ | F5: 440 | I5: 440.0353091 | J5: 0.03530910226
A6: 4 | C6: 26459 | D6: ΝΑΟΥΜ ΣΠΥΡΙΔΩΝ | E6: Ο.Α.ΧΑΝΙΩΝ | F6: 333 | I6: 333.0082872 | J6: 0.008287160047
A7: 5 | C7: 26457 | D7: ΑΡΕΤΑΚΗΣ ΙΩΑΝΝΗΣ | E7: Ο.Α.ΧΑΝΙΩΝ | F7: 247 | I7: 247.0075961 | J7: 0.007596116889
A8: 6 | C8: 27583 | D8: ΠΑΧΑΚΗΣ ΝΙΚΟΛΑΟΣ-ΑΝΔΡΕΑΣ | E8: Ο.Α.ΑΘΗΝΩΝ | F8: 219 | I8: 219.0053109 | J8: 0.005310863869
A9: 7 | C9: 29274 | D9: ΣΗΜΑΙΟΦΟΡΙΔΗΣ ΧΑΡΑΛΑΜΠΟΣ | E9: ΠΕΥΚΗ Γ.ΚΑΛΟΒΕΛΩΝΗΣ | F9: 212 | I9: 212.0237767 | J9: 0.02377674708
A10: 8 | C10: 26427 | D10: ΦΡΙΣΗΡΑΣ ΣΤΕΦΑΝΟΣ | E10: Ο.Α.ΑΘΛΗΤ.ΠΑΙΔΕΙΑ | F10: 139 | I10: 139.0185441 | J10: 0.01854412412
A11: 9 | C11: 28337 | D11: ΚΑΪΜΑΡΑΣ ΧΡΗΣΤΟΣ | E11: Α.Κ.Α.ΜΑΡΑΘΩΝΑ | F11: 136 | I11: 136.0014727 | J11: 0.001472729457
A12: 10 | C12: 26338 | D12: ΚΥΡΙΑΚΑΚΗΣ-ΜΕΣΣΑΡΙΤΑΚΗΣ ΓΕΩΡΓΙΟΣ | E12: ΗΡΑΚΛΕΙΟ Ο.Α.& Α. | F12: 119 | I12: 119.0059602 | J12: 0.00596016482
A13: 11 | B13: ALT | C13: 28285 | D13: ΠΗΛΙΟΥΝΗΣ ΜΙΧΑΗΛ | E13: Ο.Α. ΑΘΗΝΩΝ | F13: 114 | I13: 114.0191358 | J13: 0.01913579649
A14: 12 | C14: 29789 | D14: ΤΣΟΜΛΕΚΤΣΟΓΛΟΥ ΝΙΚΟΛΑΟΣ | E14: Α.Ο.Α.ΦΙΛΟΘΕΗΣ | F14: 109 | I14: 109.0043846 | J14: 0.004384647078
A15: 13 | C15: 28588 | D15: ΑΓΓΕΛΟΠΟΥΛΟΣ ΜΙΛΤΙΑΔΗΣ | E15: ΠΕΥΚΗ Γ.ΚΑΛΟΒΕΛΩΝΗΣ | F15: 103 | I15: 103.000586 | J15: 0.0005860269902
A16: 14 | C16: 26547 | D16: ΚΟΚΟΤΣΑΚΗΣ ΑΛΚΙΝΟΟΣ | E16: Α.Ο.Α.ΗΛΙΟΥΠΟΛΗΣ | F16: 73 | I16: 73.01593985 | J16: 0.01593985267
A17: 15 | C17: 29651 | D17: ΝΙΚΟΛΑΚΑΚΗΣ ΙΩΑΝΝΗΣ | E17: ΗΡΑΚΛΕΙΟ Ο.Α.& Α. | F17: 67 | I17: 67.03712715 | J17: 0.03712715495
A18: 16 | C18: 26230 | D18: ΜΑΝΟΥΣΑΚΗΣ ΚΥΡΙΑΚΟΣ | E18: ΗΡΑΚΛΕΙΟ Ο.Α.& Α. | F18: 49 | I18: 49.022537 | J18: 0.02253700254
A19: 17 | C19: 29502 | D19: ΠΑΤΕΡΑΣ ΔΙΑΜΑΝΤΗΣ | E19: Α.Ο.ΤΑΤΟΪΟΥ | F19: 46 | I19: 46.00582678 | J19: 0.005826776004
A20: 18 | C20: 30944 | D20: ΚΟΝΤΟΓΙΩΡΓΑΚΗΣ ΙΩΑΝΝΗΣ | E20: Ο.Α.ΣΗΤΕΙΑΣ | F20: 44 | I20: 44.01321564 | J20: 0.01321564021
A21: 19 | C21: 28243 | D21: ΚΡΑΣΟΥΔΑΚΗΣ ΙΩΑΝΝΗΣ-ΓΕΩΡΓΙΟΣ | E21: Ο.Α.ΧΑΝΙΩΝ | F21: 36.5 | I21: 36.50574489 | J21: 0.005744889394
A22: 20 | C22: 26172 | D22: ΣΤΑΥΡΟΥΛΑΚΗΣ ΓΕΩΡΓΙΟΣ | E22: ΗΡΑΚΛΕΙΟ Ο.Α.& Α. | F22: 34 | I22: 34.02747696 | J22: 0.02747696241
A23: 21 | C23: 33530 | D23: ΓΙΑΚΟΥΜΑΚΗΣ ΙΩΑΝΝΗΣ | E23: Ο.Α.ΧΑΝΙΩΝ | F23: 26 | I23: 26.03927507 | J23: 0.03927507168
A24: 22 | C24: 30064 | D24: ΚΟΥΚΟΥΛΙΘΡΑΣ ΙΩΑΝΝΗΣ | E24: Ο.Α.ΚΕΡΑΤΣΙΝΙΟΥ | F24: 25 | I24: 25.02216136 | J24: 0.02216136353
A25: 23 | C25: 33872 | D25: ΚΡΟΝΤΗΡΑΣ ΑΝΑΣΤΑΣΙΟΣ | E25: ΗΡΑΚΛΕΙΟ Ο.Α.& Α. | F25: 13 | I25: 13.01287608 | J25: 0.01287607778
A26: 24 | C26: 34445 | D26: ΠΑΠΑΚΥΡΙΑΚΟΥ ΜΙΧΑΛΗΣ | E26: Α.Ο.ΒΑΡΗΣ ΑΝΑΓΥΡΟΥΣ | F26: 0 | I26: 0.03864590416 | J26: 0.03864590416
A27: 25 | C27: 35870 | D27: ΠΑΡΑΣΚΕΥΑΣ ΜΑΡΙΝΟΣ | E27: Α.Π.Μ.Σ.ΑΣΚΗΣΗ ΗΡΑΚΛΕΙΟΥ | F27: 0 | I27: 0.02461311956 | J27: 0.02461311956
A28: 26 | C28: 30054 | D28: ΣΑΚΕΛΛΑΡΙΔΗΣ ΜΙΧΑΛΗΣ | E28: Ο.Α.ΑΓΙΑΣ ΠΑΡΑΣΚΕΥΗΣ | F28: 0 | I28: 0.01462874424 | J28: 0.01462874424
A29: 27 | I29: 0 | J29: 0.02882106887
A30: 28 | I30: 0 | J30: 0.03614321353
A31: 29 | I31: 0 | J31: 0.0119785416
A32: 30 | I32: 0 | J32: 0.0158293262
A33: 31 | I33: 0 | J33: 0.004751325555
A34: 32 | F34: 0 | I34: 0 | J34: 0.027403534
B36: Walk over
B37: α/α | C37: Α.Μ. | D37: Ονοματεπώνυμο | E37: med (Ν ή Ο)
B38: 1 | C38: 24168 | D38: ΜΙΧΑΗΛΟΣ ΣΤΕΦΑΝΟΣ | E38: Ν
B39: 2 | C39: 24511 | D39: ΙΩΑΝΝΙΔΗΣ ΝΙΚΟΛΑΟΣ | E39: Ν
B40: 3 | C40: 24772 | D40: ΜΑΡΚΟΓΙΑΝΝΑΚΗΣ ΚΩΝΣΤΑΝΤΙΝΟΣ | E40: Ο
B41: 4 | G41: επιδιαιτητής
B42: 5 | G42: =Setup!B10 -> Νικηφοράκης Σταύρος

Sheet QD
A1: =Setup!B3 & ", " & Setup!B4 & ", " & Setup!B6 & ", " & Setup!B8 & "-" & Setup!B9 -> ΕΦΟΑ, 1ο Ε2 2014, ΗΡΑΚΛΕΙΟ Ο.Α. & Α, 28 Φεβρουαρίου-4 Μαρτίου | N1: =Setup!$B$7 -> Α16
B2: =Setup!B15 -> 32 | G2: ="p"&VLOOKUP(Setup!$B$5,tmp!$J$3:$P$9,2,FALSE) -> p0,3 | L2: ="p"&VLOOKUP(Setup!$B$5,tmp!$J$3:$P$9,3,FALSE) -> p0,5 | N2: ="p"&VLOOKUP(Setup!$B$5,tmp!$J$3:$P$9,4,FALSE) -> p0,5
H3: 32 | L3: 16 | N3: 8
A4: α/α | C4: ByeOrder | D4: ByeSum | E4: ByeCnt | F4: seed | G4: Α.Μ. | H4: Ονοματεπώνυμο | I4: επώνυμο | J4: Σύλλογος
A5: 1 | E5: 0 | F5: 1 | G5: =IF(Setup!$B$23="#",0,IF(F5>0,VLOOKUP(F5,'AL QD'!$A$3:$H$34,3,FALSE),0)) -> 0 | H5: =IF($G5>0,VLOOKUP(G5,'AL QD'!$C$3:$H$34,2,FALSE),0) -> 0 | I5: =IF(NOT(G5>0),"", IF(ISERROR(FIND("-",H5)), LEFT(H5,FIND(" ",H5)-1), IF(FIND("-",H5)>FIND(" ",H5),LEFT(H5,FIND(" ",H5)-1), LEFT(H5,FIND("-",H5)-1) ))) ->  | J5: =IF($G5>0,VLOOKUP($G5,'AL QD'!$C$3:$E$34,3,FALSE),"") ->  | L5: =UPPER(IF($A$2="R",IF(OR(K5=1,K5="a"),G5,IF(OR(K5=2,K5="b"),G6,"")),IF(OR(K5=1,K5="1"),I5,IF(OR(K5=2,K5="b"),I6,"")))) -> 
A6: 2 | B6: =IF(E6=0,17-D6,0) -> 0 | C6: 1 | D6: =E6 -> 1 | E6: =IF($B$2>=C6,1,0) -> 1 | F6: =IF($B$2>=C6,"-",VLOOKUP($B6,Setup!$H$15:$I$30,2,FALSE)) -> - | G6: =IF(Setup!$B$23="#",0,IF(NOT(F6="-"),VLOOKUP(F6,'AL QD'!$A$3:$H$34,3,FALSE),0)) -> 0 | H6: =IF($G6>0,VLOOKUP($G6,'AL QD'!$C$3:$E$34,2,FALSE),"bye") -> bye | I6: =IF(NOT(G6>0),"", IF(ISERROR(FIND("-",H6)), LEFT(H6,FIND(" ",H6)-1), IF(FIND("-",H6)>FIND(" ",H6),LEFT(H6,FIND(" ",H6)-1), LEFT(H6,FIND("-",H6)-1) ))) ->  | J6: =IF($G6>0,VLOOKUP($G6,'AL QD'!$C$3:$E$34,3,FALSE),"") ->  | N6: =UPPER(IF($A$2="R",IF(OR(M6=1,M6="a"),L5,IF(OR(M6=2,M6="b"),L7,"")),IF(OR(M6=1,M6="a"),L5,IF(OR(M6=2,M6="b"),L7,"")))) -> 
A7: 3 | B7: =IF(E7=0,18-D7,0) -> 0 | C7: =Setup!G4 -> 0 | D7: =D6+E7 -> 2 | E7: =IF($B$2>=C7,1,0) -> 1 | F7: =IF($B$2>=C7,"-",VLOOKUP($B7,Setup!$H$15:$I$30,2,FALSE)) -> - | G7: =IF(Setup!$B$23="#",0,IF(NOT(F7="-"),VLOOKUP(F7,'AL QD'!$A$3:$H$34,3,FALSE),0)) -> 0 | H7: =IF($G7>0,VLOOKUP(G7,'AL QD'!$C$3:$E$34,2,FALSE),"bye") -> bye | J7: =IF($G7>0,VLOOKUP($G7,'AL QD'!$C$3:$E$34,3,FALSE),"") ->  | L7: =UPPER(IF($A$2="R",IF(OR(K7=1,K7="a"),G7,IF(OR(K7=2,K7="b"),G8,"")),IF(OR(K7=1,K7="a"),I7,IF(OR(K7=2,K7="b"),I8,"")))) -> 
A8: 4 | C8: 17 | D8: 3 | E8: =IF($B$2>=C8,1,0) -> 1 | F8: =Setup!G4 -> 0 | G8: =IF(Setup!$B$23="#",0,IF(F8>0,VLOOKUP(F8,'AL QD'!$A$3:$E$34,3,FALSE),0)) -> 0 | H8: =IF(G8>0,VLOOKUP(G8,'AL QD'!$C$3:$E$34,2,FALSE),"bye") -> bye | J8: =IF($G8>0,VLOOKUP($G8,'AL QD'!$C$3:$E$34,3,FALSE),"") -> 
A9: 5 | D9: 3 | E9: 0 | F9: 2 | G9: =IF(Setup!$B$23="#",0,IF(F9>0,VLOOKUP(F9,'AL QD'!$A$3:$H$34,3,FALSE),0)) -> 0 | H9: =IF($G9>0,VLOOKUP(G9,'AL QD'!$C$3:$H$34,2,FALSE),0) -> 0 | J9: =IF($G9>0,VLOOKUP($G9,'AL QD'!$C$3:$E$34,3,FALSE),"") ->  | L9: =UPPER(IF($A$2="R",IF(OR(K9=1,K9="a"),G9,IF(OR(K9=2,K9="b"),G10,"")),IF(OR(K9=1,K9="a"),I9,IF(OR(K9=2,K9="b"),I10,"")))) -> 
A10: 6 | B10: =IF(E10=0,19-D10,0) -> 0 | C10: 2 | D10: 4 | E10: =IF($B$2>=C10,1,0) -> 1 | F10: =IF($B$2>=C10,"-",VLOOKUP($B10,Setup!$H$15:$I$30,2,FALSE)) -> - | G10: =IF(Setup!$B$23="#",0,IF(NOT(F10="-"),VLOOKUP(F10,'AL QD'!$A$3:$E$34,3,FALSE),0)) -> 0 | H10: =IF($G10>0,VLOOKUP($G10,'AL QD'!$C$3:$E$34,2,FALSE),"bye") -> bye | J10: =IF($G10>0,VLOOKUP($G10,'AL QD'!$C$3:$E$34,3,FALSE),"") ->  | N10: =UPPER(IF($A$2="R",IF(OR(M10=1,M10="a"),L9,IF(OR(M10=2,M10="b"),L11,"")),IF(OR(M10=1,M10="a"),L9,IF(OR(M10=2,M10="b"),L11,"")))) -> 
A11: 7 | B11: =IF(E11=0,20-D11,0) -> 0 | C11: =Setup!G5 -> 0 | D11: 5 | E11: =IF($B$2>=C11,1,0) -> 1 | F11: =IF($B$2>=C11,"-",VLOOKUP($B11,Setup!$H$15:$I$30,2,FALSE)) -> - | G11: =IF(Setup!$B$23="#",0,IF(NOT(F11="-"),VLOOKUP(F11,'AL QD'!$A$3:$E$34,3,FALSE),0)) -> 0 | H11: =IF($G11>0,VLOOKUP($G11,'AL QD'!$C$3:$E$34,2,FALSE),"bye") -> bye | J11: =IF($G11>0,VLOOKUP($G11,'AL QD'!$C$3:$E$34,3,FALSE),"") ->  | L11: =UPPER(IF($A$2="R",IF(OR(K11=1,K11="a"),G11,IF(OR(K11=2,K11="b"),G12,"")),IF(OR(K11=1,K11="a"),I11,IF(OR(K11=2,K11="b"),I12,"")))) -> 
A12: 8 | C12: 18 | D12: 6 | E12: =IF($B$2>=C12,1,0) -> 1 | F12: =Setup!G5 -> 0 | G12: =IF(Setup!$B$23="#",0,IF(F12>0,VLOOKUP(F12,'AL QD'!$A$3:$E$34,3,FALSE),0)) -> 0 | H12: =IF(G12>0,VLOOKUP(G12,'AL QD'!$C$3:$E$34,2,FALSE),"bye") -> bye | J12: =IF($G12>0,VLOOKUP($G12,'AL QD'!$C$3:$E$34,3,FALSE),"") -> 
A13: 9 | D13: 6 | E13: 0 | F13: 3 | G13: =IF(Setup!$B$23="#",0,IF(F13>0,VLOOKUP(F13,'AL QD'!$A$3:$H$34,3,FALSE),0)) -> 0 | H13: =IF($G13>0,VLOOKUP(G13,'AL QD'!$C$3:$H$34,2,FALSE),0) -> 0 | J13: =IF($G13>0,VLOOKUP($G13,'AL QD'!$C$3:$E$34,3,FALSE),"") ->  | L13: =UPPER(IF($A$2="R",IF(OR(K13=1,K13="a"),G13,IF(OR(K13=2,K13="b"),G14,"")),IF(OR(K13=1,K13="a"),I13,IF(OR(K13=2,K13="b"),I14,"")))) -> 
A14: 10 | B14: =IF(E14=0,21-D14,0) -> 0 | C14: 3 | D14: 7 | E14: =IF($B$2>=C14,1,0) -> 1 | F14: =IF($B$2>=C14,"-",VLOOKUP($B14,Setup!$H$15:$I$30,2,FALSE)) -> - | G14: =IF(Setup!$B$23="#",0,IF(NOT(F14="-"),VLOOKUP(F14,'AL QD'!$A$3:$E$34,3,FALSE),0)) -> 0 | H14: =IF($G14>0,VLOOKUP($G14,'AL QD'!$C$3:$E$34,2,FALSE),"bye") -> bye | J14: =IF($G14>0,VLOOKUP($G14,'AL QD'!$C$3:$E$34,3,FALSE),"") ->  | N14: =UPPER(IF($A$2="R",IF(OR(M14=1,M14="a"),L13,IF(OR(M14=2,M14="b"),L15,"")),IF(OR(M14=1,M14="a"),L13,IF(OR(M14=2,M14="b"),L15,"")))) -> 
A15: 11 | B15: =IF(E15=0,22-D15,0) -> 0 | C15: =Setup!G6 -> 0 | D15: 8 | E15: =IF($B$2>=C15,1,0) -> 1 | F15: =IF($B$2>=C15,"-",VLOOKUP($B15,Setup!$H$15:$I$30,2,FALSE)) -> - | G15: =IF(Setup!$B$23="#",0,IF(NOT(F15="-"),VLOOKUP(F15,'AL QD'!$A$3:$E$34,3,FALSE),0)) -> 0 | H15: =IF(G15>0,VLOOKUP(G15,'AL QD'!$C$3:$E$34,2,FALSE),"bye") -> bye | J15: =IF($G15>0,VLOOKUP($G15,'AL QD'!$C$3:$E$34,3,FALSE),"") ->  | L15: =UPPER(IF($A$2="R",IF(OR(K15=1,K15="a"),G15,IF(OR(K15=2,K15="b"),G16,"")),IF(OR(K15=1,K15="a"),I15,IF(OR(K15=2,K15="b"),I16,"")))) -> 
A16: 12 | C16: 19 | D16: 9 | E16: =IF($B$2>=C16,1,0) -> 1 | F16: =Setup!G6 -> 0 | G16: =IF(Setup!$B$23="#",0,IF(F16>0,VLOOKUP(F16,'AL QD'!$A$3:$E$34,3,FALSE),0)) -> 0 | H16: =IF(G16>0,VLOOKUP(G16,'AL QD'!$C$3:$E$34,2,FALSE),"bye") -> bye | J16: =IF($G16>0,VLOOKUP($G16,'AL QD'!$C$3:$E$34,3,FALSE),"") -> 
A17: 13 | D17: 9 | E17: 0 | F17: 4 | G17: =IF(Setup!$B$23="#",0,IF(F17>0,VLOOKUP(F17,'AL QD'!$A$3:$H$34,3,FALSE),0)) -> 0 | H17: =IF($G17>0,VLOOKUP(G17,'AL QD'!$C$3:$H$34,2,FALSE),0) -> 0 | J17: =IF($G17>0,VLOOKUP($G17,'AL QD'!$C$3:$E$34,3,FALSE),"") ->  | L17: =UPPER(IF($A$2="R",IF(OR(K17=1,K17="a"),G17,IF(OR(K17=2,K17="b"),G18,"")),IF(OR(K17=1,K17="a"),I17,IF(OR(K17=2,K17="b"),I18,"")))) -> 
A18: 14 | B18: =IF(E18=0,23-D18,0) -> 0 | C18: 4 | D18: 10 | E18: =IF($B$2>=C18,1,0) -> 1 | F18: =IF($B$2>=C18,"-",VLOOKUP($B18,Setup!$H$15:$I$30,2,FALSE)) -> - | G18: =IF(Setup!$B$23="#",0,IF(NOT(F18="-"),VLOOKUP(F18,'AL QD'!$A$3:$E$34,3,FALSE),0)) -> 0 | H18: =IF($G18>0,VLOOKUP($G18,'AL QD'!$C$3:$E$34,2,FALSE),"bye") -> bye | J18: =IF($G18>0,VLOOKUP($G18,'AL QD'!$C$3:$E$34,3,FALSE),"") ->  | N18: =UPPER(IF($A$2="R",IF(OR(M18=1,M18="a"),L17,IF(OR(M18=2,M18="b"),L19,"")),IF(OR(M18=1,M18="a"),L17,IF(OR(M18=2,M18="b"),L19,"")))) -> 
A19: 15 | B19: =IF(E19=0,24-D19,0) -> 0 | C19: =Setup!G7 -> 0 | D19: 11 | E19: =IF($B$2>=C19,1,0) -> 1 | F19: =IF($B$2>=C19,"-",VLOOKUP($B19,Setup!$H$15:$I$30,2,FALSE)) -> - | G19: =IF(Setup!$B$23="#",0,IF(NOT(F19="-"),VLOOKUP(F19,'AL QD'!$A$3:$E$34,3,FALSE),0)) -> 0 | H19: =IF(G19>0,VLOOKUP(G19,'AL QD'!$C$3:$E$34,2,FALSE),"bye") -> bye | J19: =IF($G19>0,VLOOKUP($G19,'AL QD'!$C$3:$E$34,3,FALSE),"") ->  | L19: =UPPER(IF($A$2="R",IF(OR(K19=1,K19="a"),G19,IF(OR(K19=2,K19="b"),G20,"")),IF(OR(K19=1,K19="a"),I19,IF(OR(K19=2,K19="b"),I20,"")))) -> 
A20: 16 | C20: 20 | D20: 12 | E20: =IF($B$2>=C20,1,0) -> 1 | F20: =Setup!G7 -> 0 | G20: =IF(Setup!$B$23="#",0,IF(F20>0,VLOOKUP(F20,'AL QD'!$A$3:$E$34,3,FALSE),0)) -> 0 | H20: =IF(G20>0,VLOOKUP(G20,'AL QD'!$C$3:$E$34,2,FALSE),"bye") -> bye | J20: =IF($G20>0,VLOOKUP($G20,'AL QD'!$C$3:$E$34,3,FALSE),"") -> 
A21: 17 | D21: =D20+E21 -> 12 | E21: 0 | F21: 5 | G21: =IF(Setup!$B$23="#",0,IF(F21>0,VLOOKUP(F21,'AL QD'!$A$3:$H$34,3,FALSE),0)) -> 0 | H21: =IF($G21>0,VLOOKUP(G21,'AL QD'!$C$3:$H$34,2,FALSE),0) -> 0 | J21: =IF($G21>0,VLOOKUP($G21,'AL QD'!$C$3:$E$34,3,FALSE),"") ->  | L21: =UPPER(IF($A$2="R",IF(OR(K21=1,K21="a"),G21,IF(OR(K21=2,K21="b"),G22,"")),IF(OR(K21=1,K21="a"),I21,IF(OR(K21=2,K21="b"),I22,"")))) -> 
A22: 18 | B22: =IF(E22=0,25-D22,0) -> 0 | C22: 5 | D22: 13 | E22: =IF($B$2>=C22,1,0) -> 1 | F22: =IF($B$2>=C22,"-",VLOOKUP($B22,Setup!$H$15:$I$30,2,FALSE)) -> - | G22: =IF(Setup!$B$23="#",0,IF(NOT(F22="-"),VLOOKUP(F22,'AL QD'!$A$3:$E$34,3,FALSE),0)) -> 0 | H22: =IF($G22>0,VLOOKUP($G22,'AL QD'!$C$3:$E$34,2,FALSE),"bye") -> bye | J22: =IF($G22>0,VLOOKUP($G22,'AL QD'!$C$3:$E$34,3,FALSE),"") ->  | N22: =UPPER(IF($A$2="R",IF(OR(M22=1,M22="a"),L21,IF(OR(M22=2,M22="b"),L23,"")),IF(OR(M22=1,M22="a"),L21,IF(OR(M22=2,M22="b"),L23,"")))) -> 
A23: 19 | B23: =IF(E23=0,26-D23,0) -> 0 | C23: =Setup!G8 -> 0 | D23: 14 | E23: =IF($B$2>=C23,1,0) -> 1 | F23: =IF($B$2>=C23,"-",VLOOKUP($B23,Setup!$H$15:$I$30,2,FALSE)) -> - | G23: =IF(Setup!$B$23="#",0,IF(NOT(F23="-"),VLOOKUP(F23,'AL QD'!$A$3:$E$34,3,FALSE),0)) -> 0 | H23: =IF(G23>0,VLOOKUP(G23,'AL QD'!$C$3:$E$34,2,FALSE),"bye") -> bye | J23: =IF($G23>0,VLOOKUP($G23,'AL QD'!$C$3:$E$34,3,FALSE),"") ->  | L23: =UPPER(IF($A$2="R",IF(OR(K23=1,K23="a"),G23,IF(OR(K23=2,K23="b"),G24,"")),IF(OR(K23=1,K23="a"),I23,IF(OR(K23=2,K23="b"),I24,"")))) -> 
A24: 20 | C24: 21 | D24: 15 | E24: =IF($B$2>=C24,1,0) -> 1 | F24: =Setup!G8 -> 0 | G24: =IF(Setup!$B$23="#",0,IF(F24>0,VLOOKUP(F24,'AL QD'!$A$3:$E$34,3,FALSE),0)) -> 0 | H24: =IF(G24>0,VLOOKUP(G24,'AL QD'!$C$3:$E$34,2,FALSE),"bye") -> bye | J24: =IF($G24>0,VLOOKUP($G24,'AL QD'!$C$3:$E$34,3,FALSE),"") -> 
A25: 21 | D25: 15 | E25: 0 | F25: 6 | G25: =IF(Setup!$B$23="#",0,IF(F25>0,VLOOKUP(F25,'AL QD'!$A$3:$H$34,3,FALSE),0)) -> 0 | H25: =IF($G25>0,VLOOKUP(G25,'AL QD'!$C$3:$H$34,2,FALSE),0) -> 0 | J25: =IF($G25>0,VLOOKUP($G25,'AL QD'!$C$3:$E$34,3,FALSE),"") ->  | L25: =UPPER(IF($A$2="R",IF(OR(K25=1,K25="a"),G25,IF(OR(K25=2,K25="b"),G26,"")),IF(OR(K25=1,K25="a"),I25,IF(OR(K25=2,K25="b"),I26,"")))) -> 
A26: 22 | B26: =IF(E26=0,27-D26,0) -> 0 | C26: 6 | D26: 16 | E26: =IF($B$2>=C26,1,0) -> 1 | F26: =IF($B$2>=C26,"-",VLOOKUP($B26,Setup!$H$15:$I$30,2,FALSE)) -> - | G26: =IF(Setup!$B$23="#",0,IF(NOT(F26="-"),VLOOKUP(F26,'AL QD'!$A$3:$E$34,3,FALSE),0)) -> 0 | H26: =IF($G26>0,VLOOKUP($G26,'AL QD'!$C$3:$E$34,2,FALSE),"bye") -> bye | J26: =IF($G26>0,VLOOKUP($G26,'AL QD'!$C$3:$E$34,3,FALSE),"") ->  | N26: =UPPER(IF($A$2="R",IF(OR(M26=1,M26="a"),L25,IF(OR(M26=2,M26="b"),L27,"")),IF(OR(M26=1,M26="a"),L25,IF(OR(M26=2,M26="b"),L27,"")))) -> 
A27: 23 | B27: =IF(E27=0,28-D27,0) -> 0 | C27: =Setup!G9 -> 0 | D27: 17 | E27: =IF($B$2>=C27,1,0) -> 1 | F27: =IF($B$2>=C27,"-",VLOOKUP($B27,Setup!$H$15:$I$30,2,FALSE)) -> - | G27: =IF(Setup!$B$23="#",0,IF(NOT(F27="-"),VLOOKUP(F27,'AL QD'!$A$3:$E$34,3,FALSE),0)) -> 0 | H27: =IF(G27>0,VLOOKUP(G27,'AL QD'!$C$3:$E$34,2,FALSE),"bye") -> bye | J27: =IF($G27>0,VLOOKUP($G27,'AL QD'!$C$3:$E$34,3,FALSE),"") ->  | L27: =UPPER(IF($A$2="R",IF(OR(K27=1,K27="a"),G27,IF(OR(K27=2,K27="b"),G28,"")),IF(OR(K27=1,K27="a"),I27,IF(OR(K27=2,K27="b"),I28,"")))) -> 
A28: 24 | C28: 22 | D28: 18 | E28: =IF($B$2>=C28,1,0) -> 1 | F28: =Setup!G9 -> 0 | G28: =IF(Setup!$B$23="#",0,IF(F28>0,VLOOKUP(F28,'AL QD'!$A$3:$E$34,3,FALSE),0)) -> 0 | H28: =IF(G28>0,VLOOKUP(G28,'AL QD'!$C$3:$E$34,2,FALSE),"bye") -> bye | J28: =IF($G28>0,VLOOKUP($G28,'AL QD'!$C$3:$E$34,3,FALSE),"") -> 
A29: 25 | D29: 18 | E29: 0 | F29: 7 | G29: =IF(Setup!$B$23="#",0,IF(F29>0,VLOOKUP(F29,'AL QD'!$A$3:$H$34,3,FALSE),0)) -> 0 | H29: =IF($G29>0,VLOOKUP(G29,'AL QD'!$C$3:$H$34,2,FALSE),0) -> 0 | J29: =IF($G29>0,VLOOKUP($G29,'AL QD'!$C$3:$E$34,3,FALSE),"") ->  | L29: =UPPER(IF($A$2="R",IF(OR(K29=1,K29="a"),G29,IF(OR(K29=2,K29="b"),G30,"")),IF(OR(K29=1,K29="a"),I29,IF(OR(K29=2,K29="b"),I30,"")))) -> 
A30: 26 | B30: =IF(E30=0,29-D30,0) -> 0 | C30: 7 | D30: 19 | E30: =IF($B$2>=C30,1,0) -> 1 | F30: =IF($B$2>=C30,"-",VLOOKUP($B30,Setup!$H$15:$I$30,2,FALSE)) -> - | G30: =IF(Setup!$B$23="#",0,IF(NOT(F30="-"),VLOOKUP(F30,'AL QD'!$A$3:$E$34,3,FALSE),0)) -> 0 | H30: =IF($G30>0,VLOOKUP($G30,'AL QD'!$C$3:$E$34,2,FALSE),"bye") -> bye | J30: =IF($G30>0,VLOOKUP($G30,'AL QD'!$C$3:$E$34,3,FALSE),"") ->  | N30: =UPPER(IF($A$2="R",IF(OR(M30=1,M30="a"),L29,IF(OR(M30=2,M30="b"),L31,"")),IF(OR(M30=1,M30="a"),L29,IF(OR(M30=2,M30="b"),L31,"")))) -> 
A31: 27 | B31: =IF(E31=0,30-D31,0) -> 0 | C31: =Setup!G10 -> 10 | D31: 20 | E31: =IF($B$2>=C31,1,0) -> 1 | F31: =IF($B$2>=C31,"-",VLOOKUP($B31,Setup!$H$15:$I$30,2,FALSE)) -> - | G31: =IF(Setup!$B$23="#",0,IF(NOT(F31="-"),VLOOKUP(F31,'AL QD'!$A$3:$E$34,3,FALSE),0)) -> 0 | H31: =IF(G31>0,VLOOKUP(G31,'AL QD'!$C$3:$E$34,2,FALSE),"bye") -> bye | J31: =IF($G31>0,VLOOKUP($G31,'AL QD'!$C$3:$E$34,3,FALSE),"") ->  | L31: =UPPER(IF($A$2="R",IF(OR(K31=1,K31="a"),G31,IF(OR(K31=2,K31="b"),G32,"")),IF(OR(K31=1,K31="a"),I31,IF(OR(K31=2,K31="b"),I32,"")))) -> 
A32: 28 | C32: 23 | D32: 21 | E32: =IF($B$2>=C32,1,0) -> 1 | F32: =Setup!G10 -> 10 | G32: =IF(Setup!$B$23="#",0,IF(F32>0,VLOOKUP(F32,'AL QD'!$A$3:$E$34,3,FALSE),0)) -> 0 | H32: =IF(G32>0,VLOOKUP(G32,'AL QD'!$C$3:$E$34,2,FALSE),"bye") -> bye | J32: =IF($G32>0,VLOOKUP($G32,'AL QD'!$C$3:$E$34,3,FALSE),"") -> 
A33: 29 | D33: 21 | E33: 0 | F33: 8 | G33: =IF(Setup!$B$23="#",0,IF(F33>0,VLOOKUP(F33,'AL QD'!$A$3:$H$34,3,FALSE),0)) -> 0 | H33: =IF($G33>0,VLOOKUP(G33,'AL QD'!$C$3:$H$34,2,FALSE),0) -> 0 | J33: =IF($G33>0,VLOOKUP($G33,'AL QD'!$C$3:$E$34,3,FALSE),"") ->  | L33: =UPPER(IF($A$2="R",IF(OR(K33=1,K33="a"),G33,IF(OR(K33=2,K33="b"),G34,"")),IF(OR(K33=1,K33="a"),I33,IF(OR(K33=2,K33="b"),I34,"")))) -> 
A34: 30 | B34: =IF(E34=0,31-D34,0) -> 0 | C34: 8 | D34: 22 | E34: =IF($B$2>=C34,1,0) -> 1 | F34: =IF($B$2>=C34,"-",VLOOKUP($B34,Setup!$H$15:$I$30,2,FALSE)) -> - | G34: =IF(Setup!$B$23="#",0,IF(NOT(F34="-"),VLOOKUP(F34,'AL QD'!$A$3:$E$34,3,FALSE),0)) -> 0 | H34: =IF($G34>0,VLOOKUP($G34,'AL QD'!$C$3:$E$34,2,FALSE),"bye") -> bye | J34: =IF($G34>0,VLOOKUP($G34,'AL QD'!$C$3:$E$34,3,FALSE),"") ->  | N34: =UPPER(IF($A$2="R",IF(OR(M34=1,M34="a"),L33,IF(OR(M34=2,M34="b"),L35,"")),IF(OR(M34=1,M34="a"),L33,IF(OR(M34=2,M34="b"),L35,"")))) -> 
A35: 31 | B35: =IF(E35=0,32-D35,0) -> 0 | C35: =Setup!G11 -> 9 | D35: 23 | E35: =IF($B$2>=C35,1,0) -> 1 | F35: =IF($B$2>=C35,"-",VLOOKUP($B35,Setup!$H$15:$I$30,2,FALSE)) -> - | G35: =IF(Setup!$B$23="#",0,IF(NOT(F35="-"),VLOOKUP(F35,'AL QD'!$A$3:$E$34,3,FALSE),0)) -> 0 | H35: =IF(G35>0,VLOOKUP(G35,'AL QD'!$C$3:$E$34,2,FALSE),"bye") -> bye | J35: =IF($G35>0,VLOOKUP($G35,'AL QD'!$C$3:$E$34,3,FALSE),"") ->  | L35: =UPPER(IF($A$2="R",IF(OR(K35=1,K35="a"),G35,IF(OR(K35=2,K35="b"),G36,"")),IF(OR(K35=1,K35="a"),I35,IF(OR(K35=2,K35="b"),I36,"")))) -> 
A36: 32 | C36: 24 | D36: 24 | E36: =IF($B$2>=C36,1,0) -> 1 | F36: =Setup!G11 -> 9 | G36: =IF(Setup!$B$23="#",0,IF(F36>0,VLOOKUP(F36,'AL QD'!$A$3:$E$34,3,FALSE),0)) -> 0 | H36: =IF(G36>0,VLOOKUP(G36,'AL QD'!$C$3:$E$34,2,FALSE),"bye") -> bye | J36: =IF($G36>0,VLOOKUP($G36,'AL QD'!$C$3:$E$34,3,FALSE),"") -> 
H39: seeded players | N39: επιδιαιτητής
H40: ="1. " & H5 -> 1. 0 | J40: ="5. " & H21 -> 5. 0 | N40: =Setup!B10 -> Νικηφοράκης Σταύρος
H41: ="2. " & H9 -> 2. 0 | J41: ="6. " & H25 -> 6. 0
H42: ="3. " & H13 -> 3. 0 | J42: ="7. " & H29 -> 7. 0
H43: ="4. " & H17 -> 4. 0 | J43: ="8. " & H33 -> 8. 0
H59: BoldPlayers
H60: =IF(Setup!$B$16>0,I5,"") -> 
H61: =IF(Setup!$B$16>1,I9,"") -> 
H62: =IF(Setup!$B$16>2,I13,"") -> 
H63: =IF(Setup!$B$16>3,I17,"") -> 
H64: =IF(Setup!$B$16>4,I21,"") -> 
H65: =IF(Setup!$B$16>5,I25,"") -> 
H66: =IF(Setup!$B$16>6,I29,"") -> 
H67: =IF(Setup!$B$16>7,I33,"") -> 

Sheet MD
A1: =Setup!B3 & ", " & Setup!B4 & ", " & Setup!B6 & ", " & Setup!B8 & "-" & Setup!B9 -> ΕΦΟΑ, 1ο Ε2 2014, ΗΡΑΚΛΕΙΟ Ο.Α. & Α, 28 Φεβρουαρίου-4 Μαρτίου | T1: =Setup!$B$7 -> Α16
B2: =Setup!B18 -> 6 | I2: ="p"&VLOOKUP(Setup!$B$5,tmp!$J$14:$P$23,2,FALSE) -> p4 | N2: ="p"&VLOOKUP(Setup!$B$5,tmp!$J$14:$P$23,3,FALSE) -> p5 | P2: ="p"&VLOOKUP(Setup!$B$5,tmp!$J$14:$P$23,4,FALSE) -> p7 | R2: ="p"&VLOOKUP(Setup!$B$5,tmp!$J$14:$P$23,5,FALSE) -> p10 | T2: ="p"&VLOOKUP(Setup!$B$5,tmp!$J$14:$P$23,6,FALSE)&"-"&VLOOKUP(Setup!$B$5,tmp!$J$14:$P$23,7,FALSE) -> p15-18
J3: 32 | N3: 16 | P3: 8 | R3: 4 | T3: 2 & w
A4: α/α | C4: ByeOrder | D4: ByeSum | E4: ByeCnt | F4: από | G4: seed | H4: Pts | I4: Α.Μ. | J4: Ονοματεπώνυμο | K4: επώνυμο | L4: Σύλλογος
A5: 1 | B5: 1 | E5: 0 | F5: =IF(NOT($G5="-"),VLOOKUP($G5,'AL MD'!$A$3:$E$34,2,FALSE),"") -> 0 | G5: =VLOOKUP($B5,Setup!$Q$4:$R$35,2,FALSE) -> 1 | H5: =IF($G5>0,VLOOKUP($G5,'AL MD'!$A$3:$F$34,6,FALSE),0) -> 646 | I5: =IF(Setup!$B$24="#",0,IF($G5>0,VLOOKUP($G5,'AL MD'!$A$3:$E$34,3,FALSE),0)) -> 26317 | J5: =IF($I5>0,VLOOKUP($I5,'AL MD'!$C$3:$E$34,2,FALSE),"bye") -> ΚΩΣΤΑΡΑΣ ΠΑΝΑΓΙΩΤΗΣ | K5: =IF(NOT(I5>0),"", IF(ISERROR(FIND("-",J5)), LEFT(J5,FIND(" ",J5)-1), IF(FIND("-",J5)>FIND(" ",J5),LEFT(J5,FIND(" ",J5)-1), LEFT(J5,FIND("-",J5)-1) ))) -> ΚΩΣΤΑΡΑΣ | L5: =IF($I5>0,VLOOKUP($I5,'AL MD'!$C$3:$E$34,3,FALSE),"") -> Ο.Α.ΠΕΤΡΟΥΠΟΛΗΣ | M5: 1 | N5: =UPPER(IF($A$2="R",IF(OR(M5=1,M5="a"),I5,IF(OR(M5=2,M5="b"),I6,"")),IF(OR(M5=1,M5="1"),K5,IF(OR(M5=2,M5="b"),K6,"")))) -> ΚΩΣΤΑΡΑΣ | X5: =I5 -> 26317 | Y5: =J5 -> ΚΩΣΤΑΡΑΣ ΠΑΝΑΓΙΩΤΗΣ | AA5: =N5 -> ΚΩΣΤΑΡΑΣ
A6: 2 | B6: =1-D6+8 -> 8 | C6: =B5 -> 1 | D6: =E6 -> 1 | E6: =IF($B$2>=C6,1,0) -> 1 | F6: =IF(NOT($G6="-"),VLOOKUP($G6,'AL MD'!$A$3:$E$34,2,FALSE),"") ->  | G6: =IF($B$2>=C6,"-",VLOOKUP($B6,Setup!$Q$4:$R$35,2,FALSE)) -> - | H6: =IF(NOT($G6="-"),VLOOKUP($G6,'AL MD'!$A$3:$F$34,6,FALSE),0) -> 0 | I6: =IF(Setup!$B$24="#",0,IF(NOT($G6="-"),VLOOKUP($G6,'AL MD'!$A$3:$E$34,3,FALSE),0)) -> 0 | J6: =IF($I6>0,VLOOKUP($I6,'AL MD'!$C$3:$E$34,2,FALSE),"bye") -> bye | K6: =IF(NOT(I6>0),"", IF(ISERROR(FIND("-",J6)), LEFT(J6,FIND(" ",J6)-1), IF(FIND("-",J6)>FIND(" ",J6),LEFT(J6,FIND(" ",J6)-1), LEFT(J6,FIND("-",J6)-1) ))) ->  | L6: =IF($I6>0,VLOOKUP($I6,'AL MD'!$C$3:$E$34,3,FALSE),"") ->  | O6: 1 | P6: =UPPER(IF($A$2="R",IF(OR(O6=1,O6="a"),N5,IF(OR(O6=2,O6="b"),N7,"")),IF(OR(O6=1,O6="a"),N5,IF(OR(O6=2,O6="b"),N7,"")))) -> ΚΩΣΤΑΡΑΣ | X6: =I6 -> 0 | Y6: bye | AA6: =N6 -> 0 | AB6: =P6 -> ΚΩΣΤΑΡΑΣ
A7: 3 | B7: =2-D7+8 -> 9 | D7: =D6+E7 -> 1 | E7: 0 | F7: =IF(NOT($G7="-"),VLOOKUP($G7,'AL MD'!$A$3:$E$34,2,FALSE),"") -> 0 | G7: =VLOOKUP($B7,Setup!$Q$4:$R$35,2,FALSE) -> 19 | H7: =IF($G7>0,VLOOKUP($G7,'AL MD'!$A$3:$F$34,6,FALSE),0) -> 36.5 | I7: =IF(Setup!$B$24="#",0,IF($G7>0,VLOOKUP($G7,'AL MD'!$A$3:$E$34,3,FALSE),0)) -> 28243 | J7: =IF($I7>0,VLOOKUP($I7,'AL MD'!$C$3:$E$34,2,FALSE),"bye") -> ΚΡΑΣΟΥΔΑΚΗΣ ΙΩΑΝΝΗΣ-ΓΕΩΡΓΙΟΣ | K7: ΚΡΑΣΟΥΔΑΚΗΣ | L7: =IF($I7>0,VLOOKUP($I7,'AL MD'!$C$3:$E$34,3,FALSE),"") -> Ο.Α.ΧΑΝΙΩΝ | M7: 2 | N7: =UPPER(IF($A$2="R",IF(OR(M7=1,M7="a"),I7,IF(OR(M7=2,M7="b"),I8,"")),IF(OR(M7=1,M7="a"),K7,IF(OR(M7=2,M7="b"),K8,"")))) -> ΚΥΡΙΑΚΑΚΗΣ | P7: 60, 60 | X7: 28243 | Y7: ΚΡΑΣΟΥΔΑΚΗΣ ΙΩΑΝΝΗΣ-ΓΕΩΡΓΙΟΣ | AA7: ΚΥΡΙΑΚΑΚΗΣ | AB7: 60, 60
A8: 4 | B8: =3-D8+8 -> 10 | C8: 15 | D8: =D7+E8 -> 1 | E8: =IF($B$2>=C8,1,0) -> 0 | F8: =IF(NOT($G8="-"),VLOOKUP($G8,'AL MD'!$A$3:$E$34,2,FALSE),"") -> 0 | G8: =IF($B$2>=C8,"-",VLOOKUP($B8,Setup!$Q$4:$R$35,2,FALSE)) -> 10 | H8: =IF(NOT($G8="-"),VLOOKUP($G8,'AL MD'!$A$3:$F$34,6,FALSE),0) -> 119 | I8: =IF(Setup!$B$24="#",0,IF(NOT($G8="-"),VLOOKUP($G8,'AL MD'!$A$3:$E$34,3,FALSE),0)) -> 26338 | J8: =IF($I8>0,VLOOKUP($I8,'AL MD'!$C$3:$E$34,2,FALSE),"bye") -> ΚΥΡΙΑΚΑΚΗΣ-ΜΕΣΣΑΡΙΤΑΚΗΣ ΓΕΩΡΓΙΟΣ | K8: ΚΥΡΙΑΚΑΚΗΣ | L8: =IF($I8>0,VLOOKUP($I8,'AL MD'!$C$3:$E$34,3,FALSE),"") -> ΗΡΑΚΛΕΙΟ Ο.Α.& Α. | N8: 60, 62 | Q8: 1 | R8: =UPPER(IF($A$2="R",IF(OR(Q8=1,Q8="a"),P6,IF(OR(Q8=2,Q8="b"),P10,"")),IF(OR(Q8=1,Q8="a"),P6,IF(OR(Q8=2,Q8="b"),P10,"")))) -> ΚΩΣΤΑΡΑΣ | X8: 26338 | Y8: ΚΥΡΙΑΚΑΚΗΣ-ΜΕΣΣΑΡΙΤΑΚΗΣ ΓΕΩΡΓΙΟΣ | AA8: 60, 62 | AC8: =R8 -> ΚΩΣΤΑΡΑΣ
A9: 5 | B9: =4-D9+8 -> 11 | D9: 1 | E9: 0 | F9: =IF(NOT($G9="-"),VLOOKUP($G9,'AL MD'!$A$3:$E$34,2,FALSE),"") -> 0 | G9: =VLOOKUP($B9,Setup!$Q$4:$R$35,2,FALSE) -> 9 | H9: =IF($G9>0,VLOOKUP($G9,'AL MD'!$A$3:$F$34,6,FALSE),0) -> 136 | I9: =IF(Setup!$B$24="#",0,IF($G9>0,VLOOKUP($G9,'AL MD'!$A$3:$E$34,3,FALSE),0)) -> 28337 | J9: =IF($I9>0,VLOOKUP($I9,'AL MD'!$C$3:$E$34,2,FALSE),"bye") -> ΚΑΪΜΑΡΑΣ ΧΡΗΣΤΟΣ | K9: ΚΑΪΜΑΡΑΣ | L9: =IF($I9>0,VLOOKUP($I9,'AL MD'!$C$3:$E$34,3,FALSE),"") -> Α.Κ.Α.ΜΑΡΑΘΩΝΑ | M9: 1 | N9: =UPPER(IF($A$2="R",IF(OR(M9=1,M9="a"),I9,IF(OR(M9=2,M9="b"),I10,"")),IF(OR(M9=1,M9="a"),K9,IF(OR(M9=2,M9="b"),K10,"")))) -> ΚΑΪΜΑΡΑΣ | R9: 60, 76(5) | X9: 28337 | Y9: ΚΑΪΜΑΡΑΣ ΧΡΗΣΤΟΣ | AA9: ΚΑΪΜΑΡΑΣ | AC9: =R9 -> 60, 76(5)
A10: 6 | B10: =5-D10+8 -> 12 | C10: 9 | D10: 1 | E10: =IF($B$2>=C10,1,0) -> 0 | F10: =IF(NOT($G10="-"),VLOOKUP($G10,'AL MD'!$A$3:$E$34,2,FALSE),"") -> 0 | G10: =IF($B$2>=C10,"-",VLOOKUP($B10,Setup!$Q$4:$R$35,2,FALSE)) -> 17 | H10: =IF(NOT($G10="-"),VLOOKUP($G10,'AL MD'!$A$3:$F$34,6,FALSE),0) -> 46 | I10: =IF(Setup!$B$24="#",0,IF(NOT($G10="-"),VLOOKUP($G10,'AL MD'!$A$3:$E$34,3,FALSE),0)) -> 29502 | J10: =IF($I10>0,VLOOKUP($I10,'AL MD'!$C$3:$E$34,2,FALSE),"bye") -> ΠΑΤΕΡΑΣ ΔΙΑΜΑΝΤΗΣ | K10: ΠΑΤΕΡΑΣ | L10: =IF($I10>0,VLOOKUP($I10,'AL MD'!$C$3:$E$34,3,FALSE),"") -> Α.Ο.ΤΑΤΟΪΟΥ | N10: 61, 75 | O10: 1 | P10: =UPPER(IF($A$2="R",IF(OR(O10=1,O10="a"),N9,IF(OR(O10=2,O10="b"),N11,"")),IF(OR(O10=1,O10="a"),N9,IF(OR(O10=2,O10="b"),N11,"")))) -> ΚΑΪΜΑΡΑΣ | X10: 29502 | Y10: ΠΑΤΕΡΑΣ ΔΙΑΜΑΝΤΗΣ | AA10: 61, 75 | AB10: ΚΑΪΜΑΡΑΣ
A11: 7 | B11: =6-D11+8 -> 12 | C11: =B12 -> 5 | D11: 2 | E11: =IF($B$2>=C11,1,0) -> 1 | F11: =IF(NOT($G11="-"),VLOOKUP($G11,'AL MD'!$A$3:$E$34,2,FALSE),"") ->  | G11: =IF($B$2>=C11,"-",VLOOKUP($B11,Setup!$Q$4:$R$35,2,FALSE)) -> - | H11: =IF(NOT($G11="-"),VLOOKUP($G11,'AL MD'!$A$3:$F$34,6,FALSE),0) -> 0 | I11: =IF(Setup!$B$24="#",0,IF(NOT($G11="-"),VLOOKUP($G11,'AL MD'!$A$3:$E$34,3,FALSE),0)) -> 0 | J11: =IF($I11>0,VLOOKUP($I11,'AL MD'!$C$3:$E$34,2,FALSE),"bye") -> bye | L11: =IF($I11>0,VLOOKUP($I11,'AL MD'!$C$3:$E$34,3,FALSE),"") ->  | M11: 2 | N11: =UPPER(IF($A$2="R",IF(OR(M11=1,M11="a"),I11,IF(OR(M11=2,M11="b"),I12,"")),IF(OR(M11=1,M11="a"),K11,IF(OR(M11=2,M11="b"),K12,"")))) -> ΑΡΕΤΑΚΗΣ | P11: 63, 75 | X11: 0 | Y11: bye | AA11: ΑΡΕΤΑΚΗΣ | AB11: 63, 75
A12: 8 | B12: =VALUE(Setup!L7) -> 5 | D12: 2 | E12: 0 | F12: =IF(NOT($G12="-"),VLOOKUP($G12,'AL MD'!$A$3:$E$34,2,FALSE),"") -> 0 | G12: =VLOOKUP($B12,Setup!$Q$4:$R$35,2,FALSE) -> 5 | H12: =IF($G12>0,VLOOKUP($G12,'AL MD'!$A$3:$F$34,6,FALSE),0) -> 247 | I12: =IF(Setup!$B$24="#",0,IF($G12>0,VLOOKUP($G12,'AL MD'!$A$3:$E$34,3,FALSE),0)) -> 26457 | J12: =IF($I12>0,VLOOKUP($I12,'AL MD'!$C$3:$E$34,2,FALSE),"bye") -> ΑΡΕΤΑΚΗΣ ΙΩΑΝΝΗΣ | K12: ΑΡΕΤΑΚΗΣ | L12: =IF($I12>0,VLOOKUP($I12,'AL MD'!$C$3:$E$34,3,FALSE),"") -> Ο.Α.ΧΑΝΙΩΝ | S12: 1 | T12: =UPPER(IF($A$2="R",IF(OR(S12=1,S12="a"),R8,IF(OR(S12=2,S12="b"),R16,"")),IF(OR(S12=1,S12="a"),R8,IF(OR(S12=2,S12="b"),R16,"")))) -> ΚΩΣΤΑΡΑΣ | X12: 26457 | Y12: ΑΡΕΤΑΚΗΣ ΙΩΑΝΝΗΣ | AA12: 0 | AD12: =T12 -> ΚΩΣΤΑΡΑΣ
A13: 9 | B13: =VALUE(Setup!L4) -> 4 | D13: 2 | E13: 0 | F13: =IF(NOT($G13="-"),VLOOKUP($G13,'AL MD'!$A$3:$E$34,2,FALSE),"") -> 0 | G13: =VLOOKUP($B13,Setup!$Q$4:$R$35,2,FALSE) -> 4 | H13: =IF($G13>0,VLOOKUP($G13,'AL MD'!$A$3:$F$34,6,FALSE),0) -> 333 | I13: =IF(Setup!$B$24="#",0,IF($G13>0,VLOOKUP($G13,'AL MD'!$A$3:$E$34,3,FALSE),0)) -> 26459 | J13: =IF($I13>0,VLOOKUP($I13,'AL MD'!$C$3:$E$34,2,FALSE),"bye") -> ΝΑΟΥΜ ΣΠΥΡΙΔΩΝ | K13: ΝΑΟΥΜ | L13: =IF($I13>0,VLOOKUP($I13,'AL MD'!$C$3:$E$34,3,FALSE),"") -> Ο.Α.ΧΑΝΙΩΝ | M13: 1 | N13: =UPPER(IF($A$2="R",IF(OR(M13=1,M13="a"),I13,IF(OR(M13=2,M13="b"),I14,"")),IF(OR(M13=1,M13="a"),K13,IF(OR(M13=2,M13="b"),K14,"")))) -> ΝΑΟΥΜ | T13: 62, 61 | X13: 26459 | Y13: ΝΑΟΥΜ ΣΠΥΡΙΔΩΝ | AA13: ΝΑΟΥΜ
A14: 10 | B14: =7-D14+8 -> 12 | C14: =B13 -> 4 | D14: 3 | E14: =IF($B$2>=C14,1,0) -> 1 | F14: =IF(NOT($G14="-"),VLOOKUP($G14,'AL MD'!$A$3:$E$34,2,FALSE),"") ->  | G14: =IF($B$2>=C14,"-",VLOOKUP($B14,Setup!$Q$4:$R$35,2,FALSE)) -> - | H14: =IF(NOT($G14="-"),VLOOKUP($G14,'AL MD'!$A$3:$F$34,6,FALSE),0) -> 0 | I14: =IF(Setup!$B$24="#",0,IF(NOT($G14="-"),VLOOKUP($G14,'AL MD'!$A$3:$E$34,3,FALSE),0)) -> 0 | J14: =IF($I14>0,VLOOKUP($I14,'AL MD'!$C$3:$E$34,2,FALSE),"bye") -> bye | L14: =IF($I14>0,VLOOKUP($I14,'AL MD'!$C$3:$E$34,3,FALSE),"") ->  | O14: 1 | P14: =UPPER(IF($A$2="R",IF(OR(O14=1,O14="a"),N13,IF(OR(O14=2,O14="b"),N15,"")),IF(OR(O14=1,O14="a"),N13,IF(OR(O14=2,O14="b"),N15,"")))) -> ΝΑΟΥΜ | X14: 0 | Y14: bye | AA14: 0 | AB14: ΝΑΟΥΜ
A15: 11 | B15: =8-D15+8 -> 13 | D15: 3 | E15: 0 | F15: =IF(NOT($G15="-"),VLOOKUP($G15,'AL MD'!$A$3:$E$34,2,FALSE),"") -> 0 | G15: =VLOOKUP($B15,Setup!$Q$4:$R$35,2,FALSE) -> 16 | H15: =IF($G15>0,VLOOKUP($G15,'AL MD'!$A$3:$F$34,6,FALSE),0) -> 49 | I15: =IF(Setup!$B$24="#",0,IF($G15>0,VLOOKUP($G15,'AL MD'!$A$3:$E$34,3,FALSE),0)) -> 26230 | J15: =IF($I15>0,VLOOKUP($I15,'AL MD'!$C$3:$E$34,2,FALSE),"bye") -> ΜΑΝΟΥΣΑΚΗΣ ΚΥΡΙΑΚΟΣ | K15: ΜΑΝΟΥΣΑΚΗΣ | L15: =IF($I15>0,VLOOKUP($I15,'AL MD'!$C$3:$E$34,3,FALSE),"") -> ΗΡΑΚΛΕΙΟ Ο.Α.& Α. | M15: 1 | N15: =UPPER(IF($A$2="R",IF(OR(M15=1,M15="a"),I15,IF(OR(M15=2,M15="b"),I16,"")),IF(OR(M15=1,M15="a"),K15,IF(OR(M15=2,M15="b"),K16,"")))) -> ΜΑΝΟΥΣΑΚΗΣ | P15: 61, 61 | X15: 26230 | Y15: ΜΑΝΟΥΣΑΚΗΣ ΚΥΡΙΑΚΟΣ | AA15: ΜΑΝΟΥΣΑΚΗΣ | AB15: 61, 61
A16: 12 | B16: =9-D16+8 -> 14 | C16: 13 | D16: 3 | E16: =IF($B$2>=C16,1,0) -> 0 | F16: =IF(NOT($G16="-"),VLOOKUP($G16,'AL MD'!$A$3:$E$34,2,FALSE),"") -> 0 | G16: =IF($B$2>=C16,"-",VLOOKUP($B16,Setup!$Q$4:$R$35,2,FALSE)) -> 20 | H16: =IF(NOT($G16="-"),VLOOKUP($G16,'AL MD'!$A$3:$F$34,6,FALSE),0) -> 34 | I16: =IF(Setup!$B$24="#",0,IF(NOT($G16="-"),VLOOKUP($G16,'AL MD'!$A$3:$E$34,3,FALSE),0)) -> 26172 | J16: =IF($I16>0,VLOOKUP($I16,'AL MD'!$C$3:$E$34,2,FALSE),"bye") -> ΣΤΑΥΡΟΥΛΑΚΗΣ ΓΕΩΡΓΙΟΣ | K16: ΣΤΑΥΡΟΥΛΑΚΗΣ | L16: =IF($I16>0,VLOOKUP($I16,'AL MD'!$C$3:$E$34,3,FALSE),"") -> ΗΡΑΚΛΕΙΟ Ο.Α.& Α. | N16: 63, 61 | Q16: 1 | R16: =UPPER(IF($A$2="R",IF(OR(Q16=1,Q16="a"),P14,IF(OR(Q16=2,Q16="b"),P18,"")),IF(OR(Q16=1,Q16="a"),P14,IF(OR(Q16=2,Q16="b"),P18,"")))) -> ΝΑΟΥΜ | X16: 26172 | Y16: ΣΤΑΥΡΟΥΛΑΚΗΣ ΓΕΩΡΓΙΟΣ | AA16: 63, 61 | AC16: =R16 -> ΝΑΟΥΜ
A17: 13 | B17: =10-D17+8 -> 15 | D17: 3 | E17: 0 | F17: =IF(NOT($G17="-"),VLOOKUP($G17,'AL MD'!$A$3:$E$34,2,FALSE),"") -> 0 | G17: =VLOOKUP($B17,Setup!$Q$4:$R$35,2,FALSE) -> 21 | H17: =IF($G17>0,VLOOKUP($G17,'AL MD'!$A$3:$F$34,6,FALSE),0) -> 26 | I17: =IF(Setup!$B$24="#",0,IF($G17>0,VLOOKUP($G17,'AL MD'!$A$3:$E$34,3,FALSE),0)) -> 33530 | J17: =IF($I17>0,VLOOKUP($I17,'AL MD'!$C$3:$E$34,2,FALSE),"bye") -> ΓΙΑΚΟΥΜΑΚΗΣ ΙΩΑΝΝΗΣ | K17: ΓΙΑΚΟΥΜΑΚΗΣ | L17: =IF($I17>0,VLOOKUP($I17,'AL MD'!$C$3:$E$34,3,FALSE),"") -> Ο.Α.ΧΑΝΙΩΝ | M17: 1 | N17: =UPPER(IF($A$2="R",IF(OR(M17=1,M17="a"),I17,IF(OR(M17=2,M17="b"),I18,"")),IF(OR(M17=1,M17="a"),K17,IF(OR(M17=2,M17="b"),K18,"")))) -> ΓΙΑΚΟΥΜΑΚΗΣ | R17: 46, 64, 62 | X17: 33530 | Y17: ΓΙΑΚΟΥΜΑΚΗΣ ΙΩΑΝΝΗΣ | AA17: ΓΙΑΚΟΥΜΑΚΗΣ | AC17: =R17 -> 46, 64, 62
A18: 14 | B18: =11-D18+8 -> 16 | C18: 11 | D18: 3 | E18: =IF($B$2>=C18,1,0) -> 0 | F18: =IF(NOT($G18="-"),VLOOKUP($G18,'AL MD'!$A$3:$E$34,2,FALSE),"") -> 0 | G18: =IF($B$2>=C18,"-",VLOOKUP($B18,Setup!$Q$4:$R$35,2,FALSE)) -> 25 | H18: =IF(NOT($G18="-"),VLOOKUP($G18,'AL MD'!$A$3:$F$34,6,FALSE),0) -> 0 | I18: =IF(Setup!$B$24="#",0,IF(NOT($G18="-"),VLOOKUP($G18,'AL MD'!$A$3:$E$34,3,FALSE),0)) -> 35870 | J18: =IF($I18>0,VLOOKUP($I18,'AL MD'!$C$3:$E$34,2,FALSE),"bye") -> ΠΑΡΑΣΚΕΥΑΣ ΜΑΡΙΝΟΣ | K18: ΠΑΡΑΣΚΕΥΑΣ | L18: =IF($I18>0,VLOOKUP($I18,'AL MD'!$C$3:$E$34,3,FALSE),"") -> Α.Π.Μ.Σ.ΑΣΚΗΣΗ ΗΡΑΚΛΕΙΟΥ | N18: 61, 63 | O18: 2 | P18: =UPPER(IF($A$2="R",IF(OR(O18=1,O18="a"),N17,IF(OR(O18=2,O18="b"),N19,"")),IF(OR(O18=1,O18="a"),N17,IF(OR(O18=2,O18="b"),N19,"")))) -> ΦΡΙΣΗΡΑΣ | X18: 35870 | Y18: ΠΑΡΑΣΚΕΥΑΣ ΜΑΡΙΝΟΣ | AA18: 61, 63 | AB18: ΦΡΙΣΗΡΑΣ
A19: 15 | B19: =12-D19+8 -> 17 | C19: =B20 -> 8 | D19: 3 | E19: =IF($B$2>=C19,1,0) -> 0 | F19: =IF(NOT($G19="-"),VLOOKUP($G19,'AL MD'!$A$3:$E$34,2,FALSE),"") -> 0 | G19: =IF($B$2>=C19,"-",VLOOKUP($B19,Setup!$Q$4:$R$35,2,FALSE)) -> 13 | H19: =IF(NOT($G19="-"),VLOOKUP($G19,'AL MD'!$A$3:$F$34,6,FALSE),0) -> 103 | I19: =IF(Setup!$B$24="#",0,IF(NOT($G19="-"),VLOOKUP($G19,'AL MD'!$A$3:$E$34,3,FALSE),0)) -> 28588 | J19: =IF($I19>0,VLOOKUP($I19,'AL MD'!$C$3:$E$34,2,FALSE),"bye") -> ΑΓΓΕΛΟΠΟΥΛΟΣ ΜΙΛΤΙΑΔΗΣ | K19: ΑΓΓΕΛΟΠΟΥΛΟΣ | L19: =IF($I19>0,VLOOKUP($I19,'AL MD'!$C$3:$E$34,3,FALSE),"") -> ΠΕΥΚΗ Γ.ΚΑΛΟΒΕΛΩΝΗΣ | M19: 2 | N19: =UPPER(IF($A$2="R",IF(OR(M19=1,M19="a"),I19,IF(OR(M19=2,M19="b"),I20,"")),IF(OR(M19=1,M19="a"),K19,IF(OR(M19=2,M19="b"),K20,"")))) -> ΦΡΙΣΗΡΑΣ | P19: 60 ret | X19: 28588 | Y19: ΑΓΓΕΛΟΠΟΥΛΟΣ ΜΙΛΤΙΑΔΗΣ | AA19: ΦΡΙΣΗΡΑΣ | AB19: 60 ret
A20: 16 | B20: =VALUE(Setup!L8) -> 8 | D20: 3 | E20: 0 | F20: =IF(NOT($G20="-"),VLOOKUP($G20,'AL MD'!$A$3:$E$34,2,FALSE),"") -> 0 | G20: =VLOOKUP($B20,Setup!$Q$4:$R$35,2,FALSE) -> 8 | H20: =IF($G20>0,VLOOKUP($G20,'AL MD'!$A$3:$F$34,6,FALSE),0) -> 139 | I20: =IF(Setup!$B$24="#",0,IF($G20>0,VLOOKUP($G20,'AL MD'!$A$3:$E$34,3,FALSE),0)) -> 26427 | J20: =IF($I20>0,VLOOKUP($I20,'AL MD'!$C$3:$E$34,2,FALSE),"bye") -> ΦΡΙΣΗΡΑΣ ΣΤΕΦΑΝΟΣ | K20: ΦΡΙΣΗΡΑΣ | L20: =IF($I20>0,VLOOKUP($I20,'AL MD'!$C$3:$E$34,3,FALSE),"") -> Ο.Α.ΑΘΛΗΤ.ΠΑΙΔΕΙΑ | N20: 61, 61 | S20: 2 | T20: =UPPER(IF($A$2="R",IF(OR(S20=1,S20="a"),T12,IF(OR(S20=2,S20="b"),T28,"")),IF(OR(S20=1,S20="a"),T12,IF(OR(S20=2,S20="b"),T28,"")))) -> ΚΑΠΙΡΗΣ | X20: 26427 | Y20: ΦΡΙΣΗΡΑΣ ΣΤΕΦΑΝΟΣ | AA20: 61, 61 | AD20: =T20 -> ΚΑΠΙΡΗΣ
A21: 17 | B21: =VALUE(Setup!L9) -> 6 | D21: 3 | E21: 0 | F21: =IF(NOT($G21="-"),VLOOKUP($G21,'AL MD'!$A$3:$E$34,2,FALSE),"") -> 0 | G21: =VLOOKUP($B21,Setup!$Q$4:$R$35,2,FALSE) -> 6 | H21: =IF($G21>0,VLOOKUP($G21,'AL MD'!$A$3:$F$34,6,FALSE),0) -> 219 | I21: =IF(Setup!$B$24="#",0,IF($G21>0,VLOOKUP($G21,'AL MD'!$A$3:$E$34,3,FALSE),0)) -> 27583 | J21: =IF($I21>0,VLOOKUP($I21,'AL MD'!$C$3:$E$34,2,FALSE),"bye") -> ΠΑΧΑΚΗΣ ΝΙΚΟΛΑΟΣ-ΑΝΔΡΕΑΣ | K21: ΠΑΧΑΚΗΣ | L21: =IF($I21>0,VLOOKUP($I21,'AL MD'!$C$3:$E$34,3,FALSE),"") -> Ο.Α.ΑΘΗΝΩΝ | M21: 1 | N21: =UPPER(IF($A$2="R",IF(OR(M21=1,M21="a"),I21,IF(OR(M21=2,M21="b"),I22,"")),IF(OR(M21=1,M21="a"),K21,IF(OR(M21=2,M21="b"),K22,"")))) -> ΠΑΧΑΚΗΣ | T21: 75, 63 | X21: 27583 | Y21: ΠΑΧΑΚΗΣ ΝΙΚΟΛΑΟΣ-ΑΝΔΡΕΑΣ | AA21: ΠΑΧΑΚΗΣ | AD21: 75, 63
A22: 18 | B22: =13-D22+8 -> 17 | C22: =B21 -> 6 | D22: 4 | E22: =IF($B$2>=C22,1,0) -> 1 | F22: =IF(NOT($G22="-"),VLOOKUP($G22,'AL MD'!$A$3:$E$34,2,FALSE),"") ->  | G22: =IF($B$2>=C22,"-",VLOOKUP($B22,Setup!$Q$4:$R$35,2,FALSE)) -> - | H22: =IF(NOT($G22="-"),VLOOKUP($G22,'AL MD'!$A$3:$F$34,6,FALSE),0) -> 0 | I22: =IF(Setup!$B$24="#",0,IF(NOT($G22="-"),VLOOKUP($G22,'AL MD'!$A$3:$E$34,3,FALSE),0)) -> 0 | J22: =IF($I22>0,VLOOKUP($I22,'AL MD'!$C$3:$E$34,2,FALSE),"bye") -> bye | L22: =IF($I22>0,VLOOKUP($I22,'AL MD'!$C$3:$E$34,3,FALSE),"") ->  | O22: 1 | P22: =UPPER(IF($A$2="R",IF(OR(O22=1,O22="a"),N21,IF(OR(O22=2,O22="b"),N23,"")),IF(OR(O22=1,O22="a"),N21,IF(OR(O22=2,O22="b"),N23,"")))) -> ΠΑΧΑΚΗΣ | X22: 0 | Y22: bye | AA22: 0 | AB22: ΠΑΧΑΚΗΣ
A23: 19 | B23: =14-D23+8 -> 18 | D23: 4 | E23: 0 | F23: =IF(NOT($G23="-"),VLOOKUP($G23,'AL MD'!$A$3:$E$34,2,FALSE),"") -> 0 | G23: =VLOOKUP($B23,Setup!$Q$4:$R$35,2,FALSE) -> 23 | H23: =IF($G23>0,VLOOKUP($G23,'AL MD'!$A$3:$F$34,6,FALSE),0) -> 13 | I23: =IF(Setup!$B$24="#",0,IF($G23>0,VLOOKUP($G23,'AL MD'!$A$3:$E$34,3,FALSE),0)) -> 33872 | J23: =IF($I23>0,VLOOKUP($I23,'AL MD'!$C$3:$E$34,2,FALSE),"bye") -> ΚΡΟΝΤΗΡΑΣ ΑΝΑΣΤΑΣΙΟΣ | K23: ΚΡΟΝΤΗΡΑΣ | L23: =IF($I23>0,VLOOKUP($I23,'AL MD'!$C$3:$E$34,3,FALSE),"") -> ΗΡΑΚΛΕΙΟ Ο.Α.& Α. | M23: 2 | N23: =UPPER(IF($A$2="R",IF(OR(M23=1,M23="a"),I23,IF(OR(M23=2,M23="b"),I24,"")),IF(OR(M23=1,M23="a"),K23,IF(OR(M23=2,M23="b"),K24,"")))) -> ΚΟΥΚΟΥΛΙΘΡΑΣ | P23: 61, 62 | X23: 33872 | Y23: ΚΡΟΝΤΗΡΑΣ ΑΝΑΣΤΑΣΙΟΣ | AA23: ΚΟΥΚΟΥΛΙΘΡΑΣ | AB23: 61, 62
A24: 20 | B24: =15-D24+8 -> 19 | C24: 12 | D24: 4 | E24: =IF($B$2>=C24,1,0) -> 0 | F24: =IF(NOT($G24="-"),VLOOKUP($G24,'AL MD'!$A$3:$E$34,2,FALSE),"") -> 0 | G24: =IF($B$2>=C24,"-",VLOOKUP($B24,Setup!$Q$4:$R$35,2,FALSE)) -> 22 | H24: =IF(NOT($G24="-"),VLOOKUP($G24,'AL MD'!$A$3:$F$34,6,FALSE),0) -> 25 | I24: =IF(Setup!$B$24="#",0,IF(NOT($G24="-"),VLOOKUP($G24,'AL MD'!$A$3:$E$34,3,FALSE),0)) -> 30064 | J24: =IF($I24>0,VLOOKUP($I24,'AL MD'!$C$3:$E$34,2,FALSE),"bye") -> ΚΟΥΚΟΥΛΙΘΡΑΣ ΙΩΑΝΝΗΣ | K24: ΚΟΥΚΟΥΛΙΘΡΑΣ | L24: =IF($I24>0,VLOOKUP($I24,'AL MD'!$C$3:$E$34,3,FALSE),"") -> Ο.Α.ΚΕΡΑΤΣΙΝΙΟΥ | N24: 60, 60 | Q24: 2 | R24: =UPPER(IF($A$2="R",IF(OR(Q24=1,Q24="a"),P22,IF(OR(Q24=2,Q24="b"),P26,"")),IF(OR(Q24=1,Q24="a"),P22,IF(OR(Q24=2,Q24="b"),P26,"")))) -> ΠΙΤΣΙΝΗΣ | X24: 30064 | Y24: ΚΟΥΚΟΥΛΙΘΡΑΣ ΙΩΑΝΝΗΣ | AA24: 60, 60 | AC24: =R24 -> ΠΙΤΣΙΝΗΣ
A25: 21 | B25: =16-D25+8 -> 20 | D25: 4 | E25: 0 | F25: =IF(NOT($G25="-"),VLOOKUP($G25,'AL MD'!$A$3:$E$34,2,FALSE),"") -> 0 | G25: =VLOOKUP($B25,Setup!$Q$4:$R$35,2,FALSE) -> 12 | H25: =IF($G25>0,VLOOKUP($G25,'AL MD'!$A$3:$F$34,6,FALSE),0) -> 109 | I25: =IF(Setup!$B$24="#",0,IF($G25>0,VLOOKUP($G25,'AL MD'!$A$3:$E$34,3,FALSE),0)) -> 29789 | J25: =IF($I25>0,VLOOKUP($I25,'AL MD'!$C$3:$E$34,2,FALSE),"bye") -> ΤΣΟΜΛΕΚΤΣΟΓΛΟΥ ΝΙΚΟΛΑΟΣ | K25: ΤΣΟΜΛΕΚΤΣΟΓΛΟΥ | L25: =IF($I25>0,VLOOKUP($I25,'AL MD'!$C$3:$E$34,3,FALSE),"") -> Α.Ο.Α.ΦΙΛΟΘΕΗΣ | M25: 2 | N25: =UPPER(IF($A$2="R",IF(OR(M25=1,M25="a"),I25,IF(OR(M25=2,M25="b"),I26,"")),IF(OR(M25=1,M25="a"),K25,IF(OR(M25=2,M25="b"),K26,"")))) -> ΣΑΚΕΛΛΑΡΙΔΗΣ | R25: 61, 63 | X25: 29789 | Y25: ΤΣΟΜΛΕΚΤΣΟΓΛΟΥ ΝΙΚΟΛΑΟΣ | AA25: ΣΑΚΕΛΛΑΡΙΔΗΣ | AC25: =R25 -> 61, 63
A26: 22 | B26: =17-D26+8 -> 21 | C26: 14 | D26: 4 | E26: =IF($B$2>=C26,1,0) -> 0 | F26: =IF(NOT($G26="-"),VLOOKUP($G26,'AL MD'!$A$3:$E$34,2,FALSE),"") -> 0 | G26: =IF($B$2>=C26,"-",VLOOKUP($B26,Setup!$Q$4:$R$35,2,FALSE)) -> 26 | H26: =IF(NOT($G26="-"),VLOOKUP($G26,'AL MD'!$A$3:$F$34,6,FALSE),0) -> 0 | I26: =IF(Setup!$B$24="#",0,IF(NOT($G26="-"),VLOOKUP($G26,'AL MD'!$A$3:$E$34,3,FALSE),0)) -> 30054 | J26: =IF($I26>0,VLOOKUP($I26,'AL MD'!$C$3:$E$34,2,FALSE),"bye") -> ΣΑΚΕΛΛΑΡΙΔΗΣ ΜΙΧΑΛΗΣ | K26: ΣΑΚΕΛΛΑΡΙΔΗΣ | L26: =IF($I26>0,VLOOKUP($I26,'AL MD'!$C$3:$E$34,3,FALSE),"") -> Ο.Α.ΑΓΙΑΣ ΠΑΡΑΣΚΕΥΗΣ | N26: 63, 67(3), 63 | O26: 2 | P26: =UPPER(IF($A$2="R",IF(OR(O26=1,O26="a"),N25,IF(OR(O26=2,O26="b"),N27,"")),IF(OR(O26=1,O26="a"),N25,IF(OR(O26=2,O26="b"),N27,"")))) -> ΠΙΤΣΙΝΗΣ | X26: 30054 | Y26: ΣΑΚΕΛΛΑΡΙΔΗΣ ΜΙΧΑΛΗΣ | AA26: 63, 67(3), 63 | AB26: ΠΙΤΣΙΝΗΣ
A27: 23 | B27: =18-D27+8 -> 21 | C27: =B28 -> 3 | D27: 5 | E27: =IF($B$2>=C27,1,0) -> 1 | F27: =IF(NOT($G27="-"),VLOOKUP($G27,'AL MD'!$A$3:$E$34,2,FALSE),"") ->  | G27: =IF($B$2>=C27,"-",VLOOKUP($B27,Setup!$Q$4:$R$35,2,FALSE)) -> - | H27: =IF(NOT($G27="-"),VLOOKUP($G27,'AL MD'!$A$3:$F$34,6,FALSE),0) -> 0 | I27: =IF(Setup!$B$24="#",0,IF(NOT($G27="-"),VLOOKUP($G27,'AL MD'!$A$3:$E$34,3,FALSE),0)) -> 0 | J27: =IF($I27>0,VLOOKUP($I27,'AL MD'!$C$3:$E$34,2,FALSE),"bye") -> bye | L27: =IF($I27>0,VLOOKUP($I27,'AL MD'!$C$3:$E$34,3,FALSE),"") ->  | M27: 2 | N27: =UPPER(IF($A$2="R",IF(OR(M27=1,M27="a"),I27,IF(OR(M27=2,M27="b"),I28,"")),IF(OR(M27=1,M27="a"),K27,IF(OR(M27=2,M27="b"),K28,"")))) -> ΠΙΤΣΙΝΗΣ | P27: 64, 76(4) | X27: 0 | Y27: bye | AA27: ΠΙΤΣΙΝΗΣ | AB27: 64, 76(4)
A28: 24 | B28: =VALUE(Setup!L5) -> 3 | D28: 5 | E28: 0 | F28: =IF(NOT($G28="-"),VLOOKUP($G28,'AL MD'!$A$3:$E$34,2,FALSE),"") -> 0 | G28: =VLOOKUP($B28,Setup!$Q$4:$R$35,2,FALSE) -> 3 | H28: =IF($G28>0,VLOOKUP($G28,'AL MD'!$A$3:$F$34,6,FALSE),0) -> 440 | I28: =IF(Setup!$B$24="#",0,IF($G28>0,VLOOKUP($G28,'AL MD'!$A$3:$E$34,3,FALSE),0)) -> 30186 | J28: =IF($I28>0,VLOOKUP($I28,'AL MD'!$C$3:$E$34,2,FALSE),"bye") -> ΠΙΤΣΙΝΗΣ ΔΗΜΗΤΡΙΟΣ | K28: ΠΙΤΣΙΝΗΣ | L28: =IF($I28>0,VLOOKUP($I28,'AL MD'!$C$3:$E$34,3,FALSE),"") -> Ο.Α.ΚΕΡΑΤΣΙΝΙΟΥ | S28: 2 | T28: =UPPER(IF($A$2="R",IF(OR(S28=1,S28="a"),R24,IF(OR(S28=2,S28="b"),R32,"")),IF(OR(S28=1,S28="a"),R24,IF(OR(S28=2,S28="b"),R32,"")))) -> ΚΑΠΙΡΗΣ | X28: 30186 | Y28: ΠΙΤΣΙΝΗΣ ΔΗΜΗΤΡΙΟΣ | AA28: 0 | AD28: ΚΑΠΙΡΗΣ
A29: 25 | B29: =VALUE(Setup!L10) -> 7 | D29: 5 | E29: 0 | F29: =IF(NOT($G29="-"),VLOOKUP($G29,'AL MD'!$A$3:$E$34,2,FALSE),"") -> 0 | G29: =VLOOKUP($B29,Setup!$Q$4:$R$35,2,FALSE) -> 7 | H29: =IF($G29>0,VLOOKUP($G29,'AL MD'!$A$3:$F$34,6,FALSE),0) -> 212 | I29: =IF(Setup!$B$24="#",0,IF($G29>0,VLOOKUP($G29,'AL MD'!$A$3:$E$34,3,FALSE),0)) -> 29274 | J29: =IF($I29>0,VLOOKUP($I29,'AL MD'!$C$3:$E$34,2,FALSE),"bye") -> ΣΗΜΑΙΟΦΟΡΙΔΗΣ ΧΑΡΑΛΑΜΠΟΣ | K29: ΣΗΜΑΙΟΦΟΡΙΔΗΣ | L29: =IF($I29>0,VLOOKUP($I29,'AL MD'!$C$3:$E$34,3,FALSE),"") -> ΠΕΥΚΗ Γ.ΚΑΛΟΒΕΛΩΝΗΣ | M29: 1 | N29: =UPPER(IF($A$2="R",IF(OR(M29=1,M29="a"),I29,IF(OR(M29=2,M29="b"),I30,"")),IF(OR(M29=1,M29="a"),K29,IF(OR(M29=2,M29="b"),K30,"")))) -> ΣΗΜΑΙΟΦΟΡΙΔΗΣ | T29: 46, 62, 60 | X29: 29274 | Y29: ΣΗΜΑΙΟΦΟΡΙΔΗΣ ΧΑΡΑΛΑΜΠΟΣ | AA29: ΣΗΜΑΙΟΦΟΡΙΔΗΣ | AD29: 46, 62, 60
A30: 26 | B30: =19-D30+8 -> 22 | C30: =B29 -> 7 | D30: 5 | E30: =IF($B$2>=C30,1,0) -> 0 | F30: =IF(NOT($G30="-"),VLOOKUP($G30,'AL MD'!$A$3:$E$34,2,FALSE),"") -> 0 | G30: =IF($B$2>=C30,"-",VLOOKUP($B30,Setup!$Q$4:$R$35,2,FALSE)) -> 14 | H30: =IF(NOT($G30="-"),VLOOKUP($G30,'AL MD'!$A$3:$F$34,6,FALSE),0) -> 73 | I30: =IF(Setup!$B$24="#",0,IF(NOT($G30="-"),VLOOKUP($G30,'AL MD'!$A$3:$E$34,3,FALSE),0)) -> 26547 | J30: =IF($I30>0,VLOOKUP($I30,'AL MD'!$C$3:$E$34,2,FALSE),"bye") -> ΚΟΚΟΤΣΑΚΗΣ ΑΛΚΙΝΟΟΣ | K30: ΚΟΚΟΤΣΑΚΗΣ | L30: =IF($I30>0,VLOOKUP($I30,'AL MD'!$C$3:$E$34,3,FALSE),"") -> Α.Ο.Α.ΗΛΙΟΥΠΟΛΗΣ | N30: 62, 62 | O30: 1 | P30: =UPPER(IF($A$2="R",IF(OR(O30=1,O30="a"),N29,IF(OR(O30=2,O30="b"),N31,"")),IF(OR(O30=1,O30="a"),N29,IF(OR(O30=2,O30="b"),N31,"")))) -> ΣΗΜΑΙΟΦΟΡΙΔΗΣ | X30: 26547 | Y30: ΚΟΚΟΤΣΑΚΗΣ ΑΛΚΙΝΟΟΣ | AA30: 62, 62 | AB30: ΣΗΜΑΙΟΦΟΡΙΔΗΣ
A31: 27 | B31: =20-D31+8 -> 23 | D31: 5 | E31: 0 | F31: =IF(NOT($G31="-"),VLOOKUP($G31,'AL MD'!$A$3:$E$34,2,FALSE),"") -> 0 | G31: =VLOOKUP($B31,Setup!$Q$4:$R$35,2,FALSE) -> 18 | H31: =IF($G31>0,VLOOKUP($G31,'AL MD'!$A$3:$F$34,6,FALSE),0) -> 44 | I31: =IF(Setup!$B$24="#",0,IF($G31>0,VLOOKUP($G31,'AL MD'!$A$3:$E$34,3,FALSE),0)) -> 30944 | J31: =IF($I31>0,VLOOKUP($I31,'AL MD'!$C$3:$E$34,2,FALSE),"bye") -> ΚΟΝΤΟΓΙΩΡΓΑΚΗΣ ΙΩΑΝΝΗΣ | K31: ΚΟΝΤΟΓΙΩΡΓΑΚΗΣ | L31: =IF($I31>0,VLOOKUP($I31,'AL MD'!$C$3:$E$34,3,FALSE),"") -> Ο.Α.ΣΗΤΕΙΑΣ | M31: 2 | N31: =UPPER(IF($A$2="R",IF(OR(M31=1,M31="a"),I31,IF(OR(M31=2,M31="b"),I32,"")),IF(OR(M31=1,M31="a"),K31,IF(OR(M31=2,M31="b"),K32,"")))) -> ΝΙΚΟΛΑΚΑΚΗΣ | P31: 63, 63 | X31: 30944 | Y31: ΚΟΝΤΟΓΙΩΡΓΑΚΗΣ ΙΩΑΝΝΗΣ | AA31: ΝΙΚΟΛΑΚΑΚΗΣ | AB31: 63, 63
A32: 28 | B32: =21-D32+8 -> 24 | C32: 10 | D32: 5 | E32: =IF($B$2>=C32,1,0) -> 0 | F32: =IF(NOT($G32="-"),VLOOKUP($G32,'AL MD'!$A$3:$E$34,2,FALSE),"") -> 0 | G32: =IF($B$2>=C32,"-",VLOOKUP($B32,Setup!$Q$4:$R$35,2,FALSE)) -> 15 | H32: =IF(NOT($G32="-"),VLOOKUP($G32,'AL MD'!$A$3:$F$34,6,FALSE),0) -> 67 | I32: =IF(Setup!$B$24="#",0,IF(NOT($G32="-"),VLOOKUP($G32,'AL MD'!$A$3:$E$34,3,FALSE),0)) -> 29651 | J32: =IF($I32>0,VLOOKUP($I32,'AL MD'!$C$3:$E$34,2,FALSE),"bye") -> ΝΙΚΟΛΑΚΑΚΗΣ ΙΩΑΝΝΗΣ | K32: ΝΙΚΟΛΑΚΑΚΗΣ | L32: =IF($I32>0,VLOOKUP($I32,'AL MD'!$C$3:$E$34,3,FALSE),"") -> ΗΡΑΚΛΕΙΟ Ο.Α.& Α. | N32: 63, 36, 60 | Q32: 2 | R32: =UPPER(IF($A$2="R",IF(OR(Q32=1,Q32="a"),P30,IF(OR(Q32=2,Q32="b"),P34,"")),IF(OR(Q32=1,Q32="a"),P30,IF(OR(Q32=2,Q32="b"),P34,"")))) -> ΚΑΠΙΡΗΣ | X32: 29651 | Y32: ΝΙΚΟΛΑΚΑΚΗΣ ΙΩΑΝΝΗΣ | AA32: 63, 36, 60 | AC32: =R32 -> ΚΑΠΙΡΗΣ
A33: 29 | B33: =22-D33+8 -> 25 | D33: 5 | E33: 0 | F33: =IF(NOT($G33="-"),VLOOKUP($G33,'AL MD'!$A$3:$E$34,2,FALSE),"") -> ALT | G33: =VLOOKUP($B33,Setup!$Q$4:$R$35,2,FALSE) -> 11 | H33: =IF($G33>0,VLOOKUP($G33,'AL MD'!$A$3:$F$34,6,FALSE),0) -> 114 | I33: =IF(Setup!$B$24="#",0,IF($G33>0,VLOOKUP($G33,'AL MD'!$A$3:$E$34,3,FALSE),0)) -> 28285 | J33: =IF($I33>0,VLOOKUP($I33,'AL MD'!$C$3:$E$34,2,FALSE),"bye") -> ΠΗΛΙΟΥΝΗΣ ΜΙΧΑΗΛ | K33: ΠΗΛΙΟΥΝΗΣ | L33: =IF($I33>0,VLOOKUP($I33,'AL MD'!$C$3:$E$34,3,FALSE),"") -> Ο.Α. ΑΘΗΝΩΝ | M33: 1 | N33: =UPPER(IF($A$2="R",IF(OR(M33=1,M33="a"),I33,IF(OR(M33=2,M33="b"),I34,"")),IF(OR(M33=1,M33="a"),K33,IF(OR(M33=2,M33="b"),K34,"")))) -> ΠΗΛΙΟΥΝΗΣ | R33: 61, 62 | X33: 28285 | Y33: ΠΗΛΙΟΥΝΗΣ ΜΙΧΑΗΛ | AA33: ΠΗΛΙΟΥΝΗΣ | AC33: =R33 -> 61, 62
A34: 30 | B34: =23-D34+8 -> 26 | C34: 16 | D34: 5 | E34: =IF($B$2>=C34,1,0) -> 0 | F34: =IF(NOT($G34="-"),VLOOKUP($G34,'AL MD'!$A$3:$E$34,2,FALSE),"") -> 0 | G34: =IF($B$2>=C34,"-",VLOOKUP($B34,Setup!$Q$4:$R$35,2,FALSE)) -> 24 | H34: =IF(NOT($G34="-"),VLOOKUP($G34,'AL MD'!$A$3:$F$34,6,FALSE),0) -> 0 | I34: =IF(Setup!$B$24="#",0,IF(NOT($G34="-"),VLOOKUP($G34,'AL MD'!$A$3:$E$34,3,FALSE),0)) -> 34445 | J34: =IF($I34>0,VLOOKUP($I34,'AL MD'!$C$3:$E$34,2,FALSE),"bye") -> ΠΑΠΑΚΥΡΙΑΚΟΥ ΜΙΧΑΛΗΣ | K34: ΠΑΠΑΚΥΡΙΑΚΟΥ | L34: =IF($I34>0,VLOOKUP($I34,'AL MD'!$C$3:$E$34,3,FALSE),"") -> Α.Ο.ΒΑΡΗΣ ΑΝΑΓΥΡΟΥΣ | N34: 61, 60 | O34: 2 | P34: =UPPER(IF($A$2="R",IF(OR(O34=1,O34="a"),N33,IF(OR(O34=2,O34="b"),N35,"")),IF(OR(O34=1,O34="a"),N33,IF(OR(O34=2,O34="b"),N35,"")))) -> ΚΑΠΙΡΗΣ | X34: 34445 | Y34: ΠΑΠΑΚΥΡΙΑΚΟΥ ΜΙΧΑΛΗΣ | AA34: 61, 60 | AB34: ΚΑΠΙΡΗΣ
A35: 31 | B35: =24-D35+8 -> 26 | C35: =B36 -> 2 | D35: 6 | E35: =IF($B$2>=C35,1,0) -> 1 | F35: =IF(NOT($G35="-"),VLOOKUP($G35,'AL MD'!$A$3:$E$34,2,FALSE),"") ->  | G35: =IF($B$2>=C35,"-",VLOOKUP($B35,Setup!$Q$4:$R$35,2,FALSE)) -> - | H35: =IF(NOT($G35="-"),VLOOKUP($G35,'AL MD'!$A$3:$F$34,6,FALSE),0) -> 0 | I35: =IF(Setup!$B$24="#",0,IF(NOT($G35="-"),VLOOKUP($G35,'AL MD'!$A$3:$E$34,3,FALSE),0)) -> 0 | J35: =IF($I35>0,VLOOKUP($I35,'AL MD'!$C$3:$E$34,2,FALSE),"bye") -> bye | L35: =IF($I35>0,VLOOKUP($I35,'AL MD'!$C$3:$E$34,3,FALSE),"") ->  | M35: 2 | N35: =UPPER(IF($A$2="R",IF(OR(M35=1,M35="a"),I35,IF(OR(M35=2,M35="b"),I36,"")),IF(OR(M35=1,M35="a"),K35,IF(OR(M35=2,M35="b"),K36,"")))) -> ΚΑΠΙΡΗΣ | P35: 61, 62 | X35: 0 | Y35: bye | AA35: ΚΑΠΙΡΗΣ | AB35: 61, 62
A36: 32 | B36: 2 | D36: 6 | E36: 0 | F36: =IF(NOT($G36="-"),VLOOKUP($G36,'AL MD'!$A$3:$E$34,2,FALSE),"") -> 0 | G36: =VLOOKUP($B36,Setup!$Q$4:$R$35,2,FALSE) -> 2 | H36: =IF($G36>0,VLOOKUP($G36,'AL MD'!$A$3:$F$34,6,FALSE),0) -> 506 | I36: =IF(Setup!$B$24="#",0,IF($G36>0,VLOOKUP($G36,'AL MD'!$A$3:$E$34,3,FALSE),0)) -> 25297 | J36: =IF($I36>0,VLOOKUP($I36,'AL MD'!$C$3:$E$34,2,FALSE),"bye") -> ΚΑΠΙΡΗΣ ΣΤΑΜΑΤΗΣ | K36: ΚΑΠΙΡΗΣ | L36: =IF($I36>0,VLOOKUP($I36,'AL MD'!$C$3:$E$34,3,FALSE),"") -> Α.Ο.Α.ΗΛΙΟΥΠΟΛΗΣ | X36: =I36 -> 25297 | Y36: =J36 -> ΚΑΠΙΡΗΣ ΣΤΑΜΑΤΗΣ | AA36: 0
J39: seeded players
J40: ="1. " & IF(Setup!B19>0,LEFT('AL MD'!D3,FIND(" ",'AL MD'!D3)+1),"") -> 1. ΚΩΣΤΑΡΑΣ Π | L40: ="5. " & IF(Setup!B19>4,LEFT('AL MD'!D7,FIND(" ",'AL MD'!D7)+1),"") -> 5. ΑΡΕΤΑΚΗΣ Ι
J41: ="2. " & IF(Setup!B19>1,LEFT('AL MD'!D4,FIND(" ",'AL MD'!D4)+1),"") -> 2. ΚΑΠΙΡΗΣ Σ | L41: ="6. " & IF(Setup!B19>5,LEFT('AL MD'!D8,FIND(" ",'AL MD'!D8)+1),"") -> 6. ΠΑΧΑΚΗΣ Ν | R41: επιδιαιτητής
J42: ="3. " & IF(Setup!B19>2,LEFT('AL MD'!D5,FIND(" ",'AL MD'!D5)+1),"") -> 3. ΠΙΤΣΙΝΗΣ Δ | L42: ="7. " & IF(Setup!B19>6,LEFT('AL MD'!D9,FIND(" ",'AL MD'!D9)+1),"") -> 7. ΣΗΜΑΙΟΦΟΡΙΔΗΣ Χ | R42: =Setup!B10 -> Νικηφοράκης Σταύρος
J43: ="4. " & IF(Setup!B19>3,LEFT('AL MD'!D6,FIND(" ",'AL MD'!D6)+1),"") -> 4. ΝΑΟΥΜ Σ | L43: ="8. " & IF(Setup!B19>7,LEFT('AL MD'!D10,FIND(" ",'AL MD'!D10)+1),"") -> 8. ΦΡΙΣΗΡΑΣ Σ
J59: BoldPlayers
J60: =IF(Setup!$B$19>0,LEFT('AL MD'!D3,FIND(" ",'AL MD'!D3)-1)) -> ΚΩΣΤΑΡΑΣ
J61: =IF(Setup!$B$19>1,LEFT('AL MD'!D4,FIND(" ",'AL MD'!D4)-1)) -> ΚΑΠΙΡΗΣ
J62: =IF(Setup!$B$19>2,LEFT('AL MD'!D5,FIND(" ",'AL MD'!D5)-1)) -> ΠΙΤΣΙΝΗΣ
J63: =IF(Setup!$B$19>3,LEFT('AL MD'!D6,FIND(" ",'AL MD'!D6)-1)) -> ΝΑΟΥΜ
J64: =IF(Setup!$B$19>4,LEFT('AL MD'!D7,FIND(" ",'AL MD'!D7)-1)) -> ΑΡΕΤΑΚΗΣ
J65: =IF(Setup!$B$19>5,LEFT('AL MD'!D8,FIND(" ",'AL MD'!D8)-1)) -> ΠΑΧΑΚΗΣ
J66: =IF(Setup!$B$19>6,LEFT('AL MD'!D9,FIND(" ",'AL MD'!D9)-1)) -> ΣΗΜΑΙΟΦΟΡΙΔΗΣ
J67: =IF(Setup!$B$19>7,LEFT('AL MD'!D10,FIND(" ",'AL MD'!D10)-1)) -> ΦΡΙΣΗΡΑΣ

Sheet MD16
A1: =Setup!B3 & ", " & Setup!B4 & ", " & Setup!B6 & ", " & Setup!B8 & "-" & Setup!B9 -> ΕΦΟΑ, 1ο Ε2 2014, ΗΡΑΚΛΕΙΟ Ο.Α. & Α, 28 Φεβρουαρίου-4 Μαρτίου | R1: =Setup!B7 -> Α16
B2: =Setup!$B$77 -> 0 | I2: ="p"&VLOOKUP(Setup!$B$5,tmp!$J$14:$P$23,3,FALSE) -> p5 | N2: ="p"&VLOOKUP(Setup!$B$5,tmp!$J$14:$P$23,4,FALSE) -> p7 | P2: ="p"&VLOOKUP(Setup!$B$5,tmp!$J$14:$P$23,5,FALSE) -> p10 | R2: ="p"&VLOOKUP(Setup!$B$5,tmp!$J$14:$P$23,6,FALSE)&"-"&VLOOKUP(Setup!$B$5,tmp!$J$14:$P$23,7,FALSE) -> p15-18
J3: 16 | N3: 8 | P3: 4 | R3: 2
A4: α/α | C4: ByeOrder | D4: ByeSum | E4: ByeCnt | F4: από | G4: seed | H4: Pts | I4: Α.Μ. | J4: Ονοματεπώνυμο | K4: επώνυμο | L4: Σύλλογος
A5: 1 | B5: 1 | E5: 0 | F5: =IF(NOT($G5="-"),VLOOKUP($G5,'AL MD'!$A$3:$G$18,2,FALSE),"") -> 0 | G5: =VLOOKUP($B5,Setup!$G$71:$H$86,2,FALSE) -> 1 | H5: =IF($I5>0,VLOOKUP($G5,'AL MD'!$A$3:$G$18,6,FALSE),0) -> 0 | I5: =IF(Setup!$B$25="#",0,IF($G5>0,VLOOKUP($G5,'AL MD'!$A$3:$G$18,3,FALSE),0)) -> 0 | J5: =IF($I5>0,VLOOKUP($I5,'AL MD'!$C$3:$G$18,2,FALSE),"bye") -> bye | K5: =IF(NOT(I5>0),"", IF(ISERROR(FIND("-",J5)), LEFT(J5,FIND(" ",J5)-1), IF(FIND("-",J5)>FIND(" ",J5),LEFT(J5,FIND(" ",J5)-1), LEFT(J5,FIND("-",J5)-1) ))) ->  | L5: =IF($I5>0,VLOOKUP($I5,'AL MD'!$C$3:$G$18,3,FALSE),"") ->  | N5: =UPPER(IF($A$2="R",IF(OR(M5=1,M5="a"),I5,IF(OR(M5=2,M5="b"),I6,"")),IF(OR(M5=1,M5="1"),K5,IF(OR(M5=2,M5="b"),K6,"")))) -> 
A6: 2 | B6: =1-D6+4 -> 5 | C6: 1 | D6: =E6 -> 0 | E6: =IF($B$2>=C6,1,0) -> 0 | F6: =IF(NOT($G6="-"),VLOOKUP($G6,'AL MD'!$A$3:$G$18,2,FALSE),"") -> 0 | G6: =IF($B$2>=C6,"-",VLOOKUP($B6,Setup!$G$71:$H$86,2,FALSE)) -> 6 | H6: =IF($I6>0,VLOOKUP($G6,'AL MD'!$A$3:$G$18,6,FALSE),0) -> 0 | I6: =IF(Setup!$B$25="#",0,IF(NOT($G6="-"),VLOOKUP($G6,'AL MD'!$A$3:$G$18,3,FALSE),0)) -> 0 | J6: =IF($I6>0,VLOOKUP($I6,'AL MD'!$C$3:$G$18,2,FALSE),"bye") -> bye | L6: =IF($I6>0,VLOOKUP($I6,'AL MD'!$C$3:$G$18,3,FALSE),"") ->  | P6: =UPPER(IF($A$2="R",IF(OR(O6=1,O6="a"),N5,IF(OR(O6=2,O6="b"),N7,"")),IF(OR(O6=1,O6="a"),N5,IF(OR(O6=2,O6="b"),N7,"")))) -> 
A7: 3 | B7: =2-D7+4 -> 6 | D7: =D6+E7 -> 0 | E7: 0 | F7: =IF(NOT($G7="-"),VLOOKUP($G7,'AL MD'!$A$3:$G$18,2,FALSE),"") -> 0 | G7: =VLOOKUP($B7,Setup!$G$71:$H$86,2,FALSE) -> 12 | H7: =IF($I7>0,VLOOKUP($G7,'AL MD'!$A$3:$G$18,6,FALSE),0) -> 0 | I7: =IF(Setup!$B$25="#",0,IF($G7>0,VLOOKUP($G7,'AL MD'!$A$3:$G$18,3,FALSE),0)) -> 0 | J7: =IF($I7>0,VLOOKUP($I7,'AL MD'!$C$3:$G$18,2,FALSE),"bye") -> bye | L7: =IF($I7>0,VLOOKUP($I7,'AL MD'!$C$3:$G$18,3,FALSE),"") ->  | N7: =UPPER(IF($A$2="R",IF(OR(M7=1,M7="a"),I7,IF(OR(M7=2,M7="b"),I8,"")),IF(OR(M7=1,M7="a"),K7,IF(OR(M7=2,M7="b"),K8,"")))) -> 
A8: 4 | B8: =3-D8+4 -> 7 | C8: 7 | D8: 0 | E8: =IF($B$2>=C8,1,0) -> 0 | F8: =IF(NOT($G8="-"),VLOOKUP($G8,'AL MD'!$A$3:$G$18,2,FALSE),"") -> ALT | G8: =IF($B$2>=C8,"-",VLOOKUP($B8,Setup!$G$71:$H$86,2,FALSE)) -> 11 | H8: =IF($I8>0,VLOOKUP($G8,'AL MD'!$A$3:$G$18,6,FALSE),0) -> 0 | I8: =IF(Setup!$B$25="#",0,IF(NOT($G8="-"),VLOOKUP($G8,'AL MD'!$A$3:$G$18,3,FALSE),0)) -> 0 | J8: =IF($I8>0,VLOOKUP($I8,'AL MD'!$C$3:$G$18,2,FALSE),"bye") -> bye | L8: =IF($I8>0,VLOOKUP($I8,'AL MD'!$C$3:$G$18,3,FALSE),"") ->  | R8: =UPPER(IF($A$2="R",IF(OR(Q8=1,Q8="a"),P6,IF(OR(Q8=2,Q8="b"),P10,"")),IF(OR(Q8=1,Q8="a"),P6,IF(OR(Q8=2,Q8="b"),P10,"")))) -> 
A9: 5 | B9: =VALUE(Setup!E61) -> 4 | D9: 0 | E9: 0 | F9: =IF(NOT($G9="-"),VLOOKUP($G9,'AL MD'!$A$3:$G$18,2,FALSE),"") -> 0 | G9: =VLOOKUP($B9,Setup!$G$71:$H$86,2,FALSE) -> 4 | H9: =IF($I9>0,VLOOKUP($G9,'AL MD'!$A$3:$G$18,6,FALSE),0) -> 0 | I9: =IF(Setup!$B$25="#",0,IF($G9>0,VLOOKUP($G9,'AL MD'!$A$3:$G$18,3,FALSE),0)) -> 0 | J9: =IF($I9>0,VLOOKUP($I9,'AL MD'!$C$3:$G$18,2,FALSE),"bye") -> bye | L9: =IF($I9>0,VLOOKUP($I9,'AL MD'!$C$3:$G$18,3,FALSE),"") ->  | N9: =UPPER(IF($A$2="R",IF(OR(M9=1,M9="a"),I9,IF(OR(M9=2,M9="b"),I10,"")),IF(OR(M9=1,M9="a"),K9,IF(OR(M9=2,M9="b"),K10,"")))) -> 
A10: 6 | B10: =4-D10+4 -> 8 | C10: =IF(Setup!E2=3,3,4) -> 4 | D10: 0 | E10: =IF($B$2>=C10,1,0) -> 0 | F10: =IF(NOT($G10="-"),VLOOKUP($G10,'AL MD'!$A$3:$G$18,2,FALSE),"") -> 0 | G10: =IF($B$2>=C10,"-",VLOOKUP($B10,Setup!$G$71:$H$86,2,FALSE)) -> 5 | H10: =IF( $I10>0,VLOOKUP($G10,'AL MD'!$A$3:$G$18,6,FALSE),0) -> 0 | I10: =IF(Setup!$B$25="#",0,IF(NOT($G10="-"),VLOOKUP($G10,'AL MD'!$A$3:$G$18,3,FALSE),0)) -> 0 | J10: =IF($I10>0,VLOOKUP($I10,'AL MD'!$C$3:$G$18,2,FALSE),"bye") -> bye | L10: =IF($I10>0,VLOOKUP($I10,'AL MD'!$C$3:$G$18,3,FALSE),"") ->  | P10: =UPPER(IF($A$2="R",IF(OR(O10=1,O10="a"),N9,IF(OR(O10=2,O10="b"),N11,"")),IF(OR(O10=1,O10="a"),N9,IF(OR(O10=2,O10="b"),N11,"")))) -> 
A11: 7 | B11: =5-D11+4 -> 9 | C11: 5 | D11: 0 | E11: =IF($B$2>=C11,1,0) -> 0 | F11: =IF(NOT($G11="-"),VLOOKUP($G11,'AL MD'!$A$3:$G$18,2,FALSE),"") -> 0 | G11: =IF($B$2>=C11,"-",VLOOKUP($B11,Setup!$G$71:$H$86,2,FALSE)) -> 7 | H11: =IF($I11>0,VLOOKUP($G11,'AL MD'!$A$3:$G$18,6,FALSE),0) -> 0 | I11: =IF(Setup!$B$25="#",0,IF(NOT($G11="-"),VLOOKUP($G11,'AL MD'!$A$3:$G$18,3,FALSE),0)) -> 0 | J11: =IF($I11>0,VLOOKUP($I11,'AL MD'!$C$3:$G$18,2,FALSE),"bye") -> bye | L11: =IF($I11>0,VLOOKUP($I11,'AL MD'!$C$3:$G$18,3,FALSE),"") ->  | N11: =UPPER(IF($A$2="R",IF(OR(M11=1,M11="a"),I11,IF(OR(M11=2,M11="b"),I12,"")),IF(OR(M11=1,M11="a"),K11,IF(OR(M11=2,M11="b"),K12,"")))) -> 
A12: 8 | B12: =6-D12+4 -> 10 | D12: 0 | E12: 0 | F12: =IF(NOT($G12="-"),VLOOKUP($G12,'AL MD'!$A$3:$G$18,2,FALSE),"") -> 0 | G12: =VLOOKUP($B12,Setup!$G$71:$H$86,2,FALSE) -> 9 | H12: =IF($I12>0,VLOOKUP($G12,'AL MD'!$A$3:$G$18,6,FALSE),0) -> 0 | I12: =IF(Setup!$B$25="#",0,IF($G12>0,VLOOKUP($G12,'AL MD'!$A$3:$G$18,3,FALSE),0)) -> 0 | J12: =IF($I12>0,VLOOKUP($I12,'AL MD'!$C$3:$G$18,2,FALSE),"bye") -> bye | L12: =IF($I12>0,VLOOKUP($I12,'AL MD'!$C$3:$G$18,3,FALSE),"") ->  | R12: =UPPER(IF($A$2="R",IF(OR(Q12=1,Q12="a"),R8,IF(OR(Q12=2,Q12="b"),R16,"")),IF(OR(Q12=1,Q12="a"),R8,IF(OR(Q12=2,Q12="b"),R16,"")))) -> 
A13: 9 | B13: =VALUE(Setup!E62) -> 3 | D13: 0 | E13: 0 | F13: =IF(NOT($G13="-"),VLOOKUP($G13,'AL MD'!$A$3:$G$18,2,FALSE),"") -> 0 | G13: =VLOOKUP($B13,Setup!$G$71:$H$86,2,FALSE) -> 3 | H13: =IF($I13>0,VLOOKUP($G13,'AL MD'!$A$3:$G$18,6,FALSE),0) -> 0 | I13: =IF(Setup!$B$25="#",0,IF($G13>0,VLOOKUP($G13,'AL MD'!$A$3:$G$18,3,FALSE),0)) -> 0 | J13: =IF($I13>0,VLOOKUP($I13,'AL MD'!$C$3:$G$18,2,FALSE),"bye") -> bye | L13: =IF($I13>0,VLOOKUP($I13,'AL MD'!$C$3:$G$18,3,FALSE),"") ->  | N13: =UPPER(IF($A$2="R",IF(OR(M13=1,M13="a"),I13,IF(OR(M13=2,M13="b"),I14,"")),IF(OR(M13=1,M13="a"),K13,IF(OR(M13=2,M13="b"),K14,"")))) -> 
A14: 10 | B14: =7-D14+4 -> 11 | C14: =IF(Setup!E2=3,4,3) -> 3 | D14: 0 | E14: =IF($B$2>=C14,1,0) -> 0 | F14: =IF(NOT($G14="-"),VLOOKUP($G14,'AL MD'!$A$3:$G$18,2,FALSE),"") -> 0 | G14: =IF($B$2>=C14,"-",VLOOKUP($B14,Setup!$G$71:$H$86,2,FALSE)) -> 15 | H14: =IF($I14>0,VLOOKUP($G14,'AL MD'!$A$3:$G$18,6,FALSE),0) -> 0 | I14: =IF(Setup!$B$25="#",0,IF(NOT($G14="-"),VLOOKUP($G14,'AL MD'!$A$3:$G$18,3,FALSE),0)) -> 0 | J14: =IF($I14>0,VLOOKUP($I14,'AL MD'!$C$3:$G$18,2,FALSE),"bye") -> bye | L14: =IF($I14>0,VLOOKUP($I14,'AL MD'!$C$3:$G$18,3,FALSE),"") ->  | P14: =UPPER(IF($A$2="R",IF(OR(O14=1,O14="a"),N13,IF(OR(O14=2,O14="b"),N15,"")),IF(OR(O14=1,O14="a"),N13,IF(OR(O14=2,O14="b"),N15,"")))) -> 
A15: 11 | B15: =8-D15+4 -> 12 | D15: 0 | E15: 0 | F15: =IF(NOT($G15="-"),VLOOKUP($G15,'AL MD'!$A$3:$G$18,2,FALSE),"") -> 0 | G15: =VLOOKUP($B15,Setup!$G$71:$H$86,2,FALSE) -> 16 | H15: =IF($I15>0,VLOOKUP($G15,'AL MD'!$A$3:$G$18,6,FALSE),0) -> 0 | I15: =IF(Setup!$B$25="#",0,IF($G15>0,VLOOKUP($G15,'AL MD'!$A$3:$G$18,3,FALSE),0)) -> 0 | J15: =IF($I15>0,VLOOKUP($I15,'AL MD'!$C$3:$G$18,2,FALSE),"bye") -> bye | L15: =IF($I15>0,VLOOKUP($I15,'AL MD'!$C$3:$G$18,3,FALSE),"") ->  | N15: =UPPER(IF($A$2="R",IF(OR(M15=1,M15="a"),I15,IF(OR(M15=2,M15="b"),I16,"")),IF(OR(M15=1,M15="a"),K15,IF(OR(M15=2,M15="b"),K16,"")))) -> 
A16: 12 | B16: =9-D16+4 -> 13 | C16: 6 | D16: 0 | E16: =IF($B$2>=C16,1,0) -> 0 | F16: =IF(NOT($G16="-"),VLOOKUP($G16,'AL MD'!$A$3:$G$18,2,FALSE),"") -> 0 | G16: =IF($B$2>=C16,"-",VLOOKUP($B16,Setup!$G$71:$H$86,2,FALSE)) -> 14 | H16: =IF($I16>0,VLOOKUP($G16,'AL MD'!$A$3:$G$18,6,FALSE),0) -> 0 | I16: =IF(Setup!$B$25="#",0,IF(NOT($G16="-"),VLOOKUP($G16,'AL MD'!$A$3:$G$18,3,FALSE),0)) -> 0 | J16: =IF($I16>0,VLOOKUP($I16,'AL MD'!$C$3:$G$18,2,FALSE),"bye") -> bye | L16: =IF($I16>0,VLOOKUP($I16,'AL MD'!$C$3:$G$18,3,FALSE),"") ->  | R16: =UPPER(IF($A$2="R",IF(OR(Q16=1,Q16="a"),P14,IF(OR(Q16=2,Q16="b"),P18,"")),IF(OR(Q16=1,Q16="a"),P14,IF(OR(Q16=2,Q16="b"),P18,"")))) -> 
A17: 13 | B17: =10-D17+4 -> 14 | D17: 0 | E17: 0 | F17: =IF(NOT($G17="-"),VLOOKUP($G17,'AL MD'!$A$3:$G$18,2,FALSE),"") -> 0 | G17: =VLOOKUP($B17,Setup!$G$71:$H$86,2,FALSE) -> 8 | H17: =IF($I17>0,VLOOKUP($G17,'AL MD'!$A$3:$G$18,6,FALSE),0) -> 0 | I17: =IF(Setup!$B$25="#",0,IF($G17>0,VLOOKUP($G17,'AL MD'!$A$3:$G$18,3,FALSE),0)) -> 0 | J17: =IF($I17>0,VLOOKUP($I17,'AL MD'!$C$3:$G$18,2,FALSE),"bye") -> bye | L17: =IF($I17>0,VLOOKUP($I17,'AL MD'!$C$3:$G$18,3,FALSE),"") ->  | N17: =UPPER(IF($A$2="R",IF(OR(M17=1,M17="a"),I17,IF(OR(M17=2,M17="b"),I18,"")),IF(OR(M17=1,M17="a"),K17,IF(OR(M17=2,M17="b"),K18,"")))) -> 
A18: 14 | B18: =11-D18+4 -> 15 | C18: 8 | D18: 0 | E18: =IF($B$2>=C18,1,0) -> 0 | F18: =IF(NOT($G18="-"),VLOOKUP($G18,'AL MD'!$A$3:$G$18,2,FALSE),"") -> 0 | G18: =IF($B$2>=C18,"-",VLOOKUP($B18,Setup!$G$71:$H$86,2,FALSE)) -> 13 | H18: =IF($I18>0,VLOOKUP($G18,'AL MD'!$A$3:$G$18,6,FALSE),0) -> 0 | I18: =IF(Setup!$B$25="#",0,IF(NOT($G18="-"),VLOOKUP($G18,'AL MD'!$A$3:$G$18,3,FALSE),0)) -> 0 | J18: =IF($I18>0,VLOOKUP($I18,'AL MD'!$C$3:$G$18,2,FALSE),"bye") -> bye | L18: =IF($I18>0,VLOOKUP($I18,'AL MD'!$C$3:$G$18,3,FALSE),"") ->  | P18: =UPPER(IF($A$2="R",IF(OR(O18=1,O18="a"),N17,IF(OR(O18=2,O18="b"),N19,"")),IF(OR(O18=1,O18="a"),N17,IF(OR(O18=2,O18="b"),N19,"")))) -> 
A19: 15 | B19: =12-D19+4 -> 16 | C19: 2 | D19: 0 | E19: =IF($B$2>=C19,1,0) -> 0 | F19: =IF(NOT($G19="-"),VLOOKUP($G19,'AL MD'!$A$3:$G$18,2,FALSE),"") -> 0 | G19: =IF($B$2>=C19,"-",VLOOKUP($B19,Setup!$G$71:$H$86,2,FALSE)) -> 10 | H19: =IF($I19>0,VLOOKUP($G19,'AL MD'!$A$3:$G$18,6,FALSE),0) -> 0 | I19: =IF(Setup!$B$25="#",0,IF(NOT($G19="-"),VLOOKUP($G19,'AL MD'!$A$3:$G$18,3,FALSE),0)) -> 0 | J19: =IF($I19>0,VLOOKUP($I19,'AL MD'!$C$3:$G$18,2,FALSE),"bye") -> bye | L19: =IF($I19>0,VLOOKUP($I19,'AL MD'!$C$3:$G$18,3,FALSE),"") ->  | N19: =UPPER(IF($A$2="R",IF(OR(M19=1,M19="a"),I19,IF(OR(M19=2,M19="b"),I20,"")),IF(OR(M19=1,M19="a"),K19,IF(OR(M19=2,M19="b"),K20,"")))) -> 
A20: 16 | B20: 2 | D20: 0 | E20: 0 | F20: =IF(NOT($G20="-"),VLOOKUP($G20,'AL MD'!$A$3:$G$18,2,FALSE),"") -> 0 | G20: =VLOOKUP($B20,Setup!$G$71:$H$86,2,FALSE) -> 2 | H20: =IF($I20>0,VLOOKUP($G20,'AL MD'!$A$3:$G$18,6,FALSE),0) -> 0 | I20: =IF(Setup!$B$25="#",0,IF($G20>0,VLOOKUP($G20,'AL MD'!$A$3:$G$18,3,FALSE),0)) -> 0 | J20: =IF($I20>0,VLOOKUP($I20,'AL MD'!$C$3:$G$18,2,FALSE),"bye") -> bye | L20: =IF($I20>0,VLOOKUP($I20,'AL MD'!$C$3:$G$18,3,FALSE),"") -> 
J24: seeded players
J25: ="1. " & IF(Setup!B78>0,LEFT('AL MD'!D3,FIND(" ",'AL MD'!D3)+1),"") -> 1. ΚΩΣΤΑΡΑΣ Π
J26: ="2. " & IF(Setup!B78>1,LEFT('AL MD'!D4,FIND(" ",'AL MD'!D4)+1),"") -> 2. ΚΑΠΙΡΗΣ Σ | R26: επιδιαιτητής
J27: ="3. " & IF(Setup!B78>2,LEFT('AL MD'!D5,FIND(" ",'AL MD'!D5)+1),"") -> 3. ΠΙΤΣΙΝΗΣ Δ | R27: =Setup!$B$10 -> Νικηφοράκης Σταύρος
J28: ="4. " & IF(Setup!B78>3,LEFT('AL MD'!D6,FIND(" ",'AL MD'!D6)+1),"") -> 4. ΝΑΟΥΜ Σ
J40: BoldPlayers
J41: =IF(Setup!$B$19>0,LEFT(AL MD!D3,FIND(" ",AL MD!D3)-1)) -> 
J42: =IF(Setup!$B$19>1,LEFT(AL MD!D4,FIND(" ",AL MD!D4)-1)) -> 
J43: =IF(Setup!$B$19>2,LEFT(AL MD!D5,FIND(" ",AL MD!D5)-1)) -> 
J44: =IF(Setup!$B$19>3,LEFT(AL MD!D6,FIND(" ",AL MD!D6)-1)) -> 

Sheet QDprg
A1: =Setup!$B$3 & ", " & Setup!$B$4 & ", " & Setup!$B$6 & " (" & Setup!$B$7 & ")" -> ΕΦΟΑ, 1ο Ε2 2014, ΗΡΑΚΛΕΙΟ Ο.Α. & Α (Α16)
A2: =Setup!$B$10 -> Νικηφοράκης Σταύρος
A4: Πρόγραμμα Προκριματικών | E4: Round 1
A5: ΩΡΑ | B5: Κτγρ. | C5: Αθλητής-Σύλλογος | E5: Αθλητής-Σύλλογος
A6: Έναρξη | B6: Α12 Δ
B7: Α12 Δ
B8: Α12 Δ
B9: Α12 Δ
B10: Α12 Δ
A11: όχι πριν | B11: Α12 Δ
B12: Α12 Δ
B13: Α12 Δ
B14: Α12 Δ
B15: Α12 Δ
A16: όχι πριν | B16: Α12 Δ
B17: Α12 Δ
B18: Α12 Δ
B19: Α12 Δ
B20: Α12 Δ
B21: Α12 Δ
A23: Πρόγραμμα Προκριματικών | E23: Round 2
A24: ΩΡΑ | B24: Κτγρ. | C24: Αθλητής-Σύλλογος | E24: Αθλητής-Σύλλογος
A25: Έναρξη | B25: Α12 Δ
B26: Α12 Δ
B27: Α12 Δ
B28: Α12 Δ
B29: Α12 Δ
A30: όχι πριν | B30: Α12 Δ
B31: Α12 Δ
B32: Α12 Δ

Sheet MDprg
A1: =Setup!$B$3 & ", " & Setup!$B$4 & ", " & Setup!$B$6 & " (" & Setup!$B$7 & ")" -> ΕΦΟΑ, 1ο Ε2 2014, ΗΡΑΚΛΕΙΟ Ο.Α. & Α (Α16)
A2: =Setup!$B$10 -> Νικηφοράκης Σταύρος
A4: Πρόγραμμα αγώνων Κ.Τ. | E4: Round 1
A5: ΩΡΑ | B5: Κτγρ. | C5: Αθλητής-Σύλλογος | E5: Αθλητής-Σύλλογος
A6: Έναρξη | B6: Α16 | C6: ΚΩΣΤΑΡΑΣ Π (Ο.Α.ΠΕΤΡΟΥΠΟΛΗΣ)
B7: Α16 | C7: ΚΡΑΣΟΥΔΑΚΗΣ Ι (Ο.Α.ΧΑΝΙΩΝ) | D7: - | E7: ΚΥΡΙΑΚΑΚΗΣ-ΜΕΣΣΑΡΙΤΑΚΗΣ Γ (ΗΡΑΚΛΕΙΟ Ο.Α.& Α.)
B8: Α16 | C8: ΚΑΪΜΑΡΑΣ Χ (Α.Κ.Α.ΜΑΡΑΘΩΝΑ) | D8: - | E8: ΠΑΤΕΡΑΣ Δ (Α.Ο.ΤΑΤΟΪΟΥ)
B9: Α16 | E9: ΑΡΕΤΑΚΗΣ Ι (Ο.Α.ΧΑΝΙΩΝ)
B10: Α16 | C10: ΝΑΟΥΜ Σ (Ο.Α.ΧΑΝΙΩΝ)
A11: όχι πριν | B11: Α16 | C11: ΜΑΝΟΥΣΑΚΗΣ Κ (ΗΡΑΚΛΕΙΟ Ο.Α.& Α.) | D11: - | E11: ΣΤΑΥΡΟΥΛΑΚΗΣ Γ (ΗΡΑΚΛΕΙΟ Ο.Α.& Α.)
B12: Α16 | C12: ΓΙΑΚΟΥΜΑΚΗΣ Ι (Ο.Α.ΧΑΝΙΩΝ) | D12: - | E12: ΠΑΡΑΣΚΕΥΑΣ Μ (Α.Π.Μ.Σ.ΑΣΚΗΣΗ ΗΡΑΚΛΕΙΟΥ)
B13: Α16 | C13: ΑΓΓΕΛΟΠΟΥΛΟΣ Μ (ΠΕΥΚΗ Γ.ΚΑΛΟΒΕΛΩΝΗΣ) | D13: - | E13: ΦΡΙΣΗΡΑΣ Σ (Ο.Α.ΑΘΛΗΤ.ΠΑΙΔΕΙΑ)
B14: Α16 | C14: ΠΑΧΑΚΗΣ Ν (Ο.Α.ΑΘΗΝΩΝ)
B15: Α16 | C15: ΚΡΟΝΤΗΡΑΣ Α (ΗΡΑΚΛΕΙΟ Ο.Α.& Α.) | D15: - | E15: ΚΟΥΚΟΥΛΙΘΡΑΣ Ι (Ο.Α.ΚΕΡΑΤΣΙΝΙΟΥ)
A16: όχι πριν | B16: Α16 | C16: ΤΣΟΜΛΕΚΤΣΟΓΛΟΥ Ν (Α.Ο.Α.ΦΙΛΟΘΕΗΣ) | D16: - | E16: ΣΑΚΕΛΛΑΡΙΔΗΣ Μ (Ο.Α.ΑΓΙΑΣ ΠΑΡΑΣΚΕΥΗΣ)
B17: Α16 | E17: ΠΙΤΣΙΝΗΣ Δ (Ο.Α.ΚΕΡΑΤΣΙΝΙΟΥ)
B18: Α16 | C18: ΣΗΜΑΙΟΦΟΡΙΔΗΣ Χ (ΠΕΥΚΗ Γ.ΚΑΛΟΒΕΛΩΝΗΣ) | D18: - | E18: ΚΟΚΟΤΣΑΚΗΣ Α (Α.Ο.Α.ΗΛΙΟΥΠΟΛΗΣ)
B19: Α16 | C19: ΚΟΝΤΟΓΙΩΡΓΑΚΗΣ Ι (Ο.Α.ΣΗΤΕΙΑΣ) | D19: - | E19: ΝΙΚΟΛΑΚΑΚΗΣ Ι (ΗΡΑΚΛΕΙΟ Ο.Α.& Α.)
B20: Α16 | C20: ΠΗΛΙΟΥΝΗΣ Μ (Ο.Α. ΑΘΗΝΩΝ) | D20: - | E20: ΠΑΠΑΚΥΡΙΑΚΟΥ Μ (Α.Ο.ΒΑΡΗΣ ΑΝΑΓΥΡΟΥΣ)
B21: Α16 | E21: ΚΑΠΙΡΗΣ Σ (Α.Ο.Α.ΗΛΙΟΥΠΟΛΗΣ)
A23: Πρόγραμμα αγώνων Κ.Τ. | E23: Round 2
A24: ΩΡΑ | B24: Κτγρ. | C24: Αθλητής-Σύλλογος | E24: Αθλητής-Σύλλογος
A25: Έναρξη | B25: Α16 | C25: ΚΩΣΤΑΡΑΣ Π (Ο.Α.ΠΕΤΡΟΥΠΟΛΗΣ) | D25: - | E25: ΚΥΡΙΑΚΑΚΗΣ-ΜΕΣΣΑΡΙΤΑΚΗΣ Γ (ΗΡΑΚΛΕΙΟ Ο.Α.& Α.)
B26: Α16 | C26: ΚΑΪΜΑΡΑΣ Χ (Α.Κ.Α.ΜΑΡΑΘΩΝΑ) | D26: - | E26: ΑΡΕΤΑΚΗΣ Ι (Ο.Α.ΧΑΝΙΩΝ)
B27: Α16 | C27: ΝΑΟΥΜ Σ (Ο.Α.ΧΑΝΙΩΝ) | D27: - | E27: ΜΑΝΟΥΣΑΚΗΣ Κ (ΗΡΑΚΛΕΙΟ Ο.Α.& Α.)
B28: Α16 | C28: ΓΙΑΚΟΥΜΑΚΗΣ Ι (Ο.Α.ΧΑΝΙΩΝ) | D28: - | E28: ΦΡΙΣΗΡΑΣ Σ (Ο.Α.ΑΘΛΗΤ.ΠΑΙΔΕΙΑ)
B29: Α16 | C29: ΠΑΧΑΚΗΣ Ν (Ο.Α.ΑΘΗΝΩΝ) | D29: - | E29: ΚΟΥΚΟΥΛΙΘΡΑΣ Ι (Ο.Α.ΚΕΡΑΤΣΙΝΙΟΥ)
A30: όχι πριν | B30: Α16 | C30: ΣΑΚΕΛΛΑΡΙΔΗΣ Μ (Ο.Α.ΑΓΙΑΣ ΠΑΡΑΣΚΕΥΗΣ) | D30: - | E30: ΠΙΤΣΙΝΗΣ Δ (Ο.Α.ΚΕΡΑΤΣΙΝΙΟΥ)
B31: Α16 | C31: ΣΗΜΑΙΟΦΟΡΙΔΗΣ Χ (ΠΕΥΚΗ Γ.ΚΑΛΟΒΕΛΩΝΗΣ) | D31: - | E31: ΝΙΚΟΛΑΚΑΚΗΣ Ι (ΗΡΑΚΛΕΙΟ Ο.Α.& Α.)
B32: Α16 | C32: ΠΗΛΙΟΥΝΗΣ Μ (Ο.Α. ΑΘΗΝΩΝ) | D32: - | E32: ΚΑΠΙΡΗΣ Σ (Α.Ο.Α.ΗΛΙΟΥΠΟΛΗΣ)

Sheet notes

Sheet Rankings
A1: ΑΜ | B1: Ονοματεπώνυμο | C1: Βαθμ | D1: Διπλ
F2: =IF(C3="";0;VLOOKUP(C3;Rankings!$A:$E;3;FALSE))

Sheet CalcPrg
A1: =Setup!$B$3 & ", " & Setup!$B$4 & ", " & Setup!$B$6 & " (" & Setup!$B$7 & ")" -> ΕΦΟΑ, 1ο Ε2 2014, ΗΡΑΚΛΕΙΟ Ο.Α. & Α (Α16) | G1: Don't Change this Worksheet !
A2: =Setup!$B$10 -> Νικηφοράκης Σταύρος
A4: Πρόγραμμα Προκριματικών | E4: Round 1
A5: ΩΡΑ | B5: Κτγρ. | C5: Αθλητής-Σύλλογος | E5: Αθλητής-Σύλλογος
A6: Έναρξη | B6: =Setup!$B$7 -> Α16 | C6: =IF(OR(QD!H5="bye",QD!H5="LWD"),"",LEFT(QD!H5,FIND(" ",QD!H5)+1)&" ("&QD!J5&")") ->  | D6: =IF(OR(C6="",E6="")," ","-") ->  | E6: =IF(OR(QD!H6="bye",QD!H6="LWD"),"",LEFT(QD!H6,FIND(" ",QD!H6)+1)&" ("&QD!J6&")") -> 
B7: =Setup!$B$7 -> Α16 | C7: =IF(OR(QD!H7="bye",QD!H7="LWD"),"",LEFT(QD!H7,FIND(" ",QD!H7)+1)&" ("&QD!J7&")") ->  | D7: =IF(OR(C7="",E7="")," ","-") ->  | E7: =IF(OR(QD!H8="bye",QD!H8="LWD"), "", LEFT(QD!H8,FIND(" ",QD!H8)+1)&" ("&QD!J8&")") -> 
B8: =Setup!$B$7 -> Α16 | C8: =IF(OR(QD!H9="bye",QD!H9="LWD"),"",LEFT(QD!H9,FIND(" ",QD!H9)+1)&" ("&QD!J9&")") ->  | E8: =IF(OR(QD!H10="bye",QD!H10="LWD"), "", LEFT(QD!H10,FIND(" ",QD!H10)+1)&" ("&QD!J10&")") -> 
B9: =Setup!$B$7 -> Α16 | C9: =IF(OR(QD!H11="bye",QD!H11="LWD"),"",LEFT(QD!H11,FIND(" ",QD!H11)+1)&" ("&QD!J11&")") ->  | E9: =IF(OR(QD!H12="bye",QD!H12="LWD"), "", LEFT(QD!H12,FIND(" ",QD!H12)+1)&" ("&QD!J12&")") -> 
A10: όχι πριν | B10: =Setup!$B$7 -> Α16 | C10: =IF(OR(QD!H13="bye",QD!H13="LWD"),"",LEFT(QD!H13,FIND(" ",QD!H13)+1)&" ("&QD!J13&")") ->  | E10: =IF(OR(QD!H14="bye",QD!H14="LWD"), "", LEFT(QD!H14,FIND(" ",QD!H14)+1)&" ("&QD!J14&")") -> 
B11: =Setup!$B$7 -> Α16 | C11: =IF(OR(QD!H15="bye",QD!H15="LWD"),"",LEFT(QD!H15,FIND(" ",QD!H15)+1)&" ("&QD!J15&")") ->  | E11: =IF(OR(QD!H16="bye",QD!H16="LWD"), "", LEFT(QD!H16,FIND(" ",QD!H16)+1)&" ("&QD!J16&")") -> 
B12: =Setup!$B$7 -> Α16 | C12: =IF(OR(QD!H17="bye",QD!H17="LWD"),"",LEFT(QD!H17,FIND(" ",QD!H17)+1)&" ("&QD!J17&")") ->  | E12: =IF(OR(QD!H18="bye",QD!H18="LWD"), "", LEFT(QD!H18,FIND(" ",QD!H18)+1)&" ("&QD!J18&")") -> 
B13: =Setup!$B$7 -> Α16 | C13: =IF(OR(QD!H19="bye",QD!H19="LWD"),"",LEFT(QD!H19,FIND(" ",QD!H19)+1)&" ("&QD!J19&")") ->  | E13: =IF(OR(QD!H20="bye",QD!H20="LWD"), "", LEFT(QD!H20,FIND(" ",QD!H20)+1)&" ("&QD!J20&")") -> 
A14: όχι πριν | B14: =Setup!$B$7 -> Α16 | C14: =IF(OR(QD!H21="bye",QD!H21="LWD"),"",LEFT(QD!H21,FIND(" ",QD!H21)+1)&" ("&QD!J21&")") ->  | E14: =IF(OR(QD!H22="bye",QD!H22="LWD"), "", LEFT(QD!H22,FIND(" ",QD!H22)+1)&" ("&QD!J22&")") -> 
B15: =Setup!$B$7 -> Α16 | C15: =IF(OR(QD!H23="bye",QD!H23="LWD"),"",LEFT(QD!H23,FIND(" ",QD!H23)+1)&" ("&QD!J23&")") ->  | E15: =IF(OR(QD!H24="bye",QD!H24="LWD"), "", LEFT(QD!H24,FIND(" ",QD!H24)+1)&" ("&QD!J24&")") -> 
B16: =Setup!$B$7 -> Α16 | C16: =IF(OR(QD!H25="bye",QD!H25="LWD"),"",LEFT(QD!H25,FIND(" ",QD!H25)+1)&" ("&QD!J25&")") ->  | E16: =IF(OR(QD!H26="bye",QD!H26="LWD"), "", LEFT(QD!H26,FIND(" ",QD!H26)+1)&" ("&QD!J26&")") -> 
B17: =Setup!$B$7 -> Α16 | C17: =IF(OR(QD!H27="bye",QD!H27="LWD"),"",LEFT(QD!H27,FIND(" ",QD!H27)+1)&" ("&QD!J27&")") ->  | E17: =IF(OR(QD!H28="bye",QD!H28="LWD"), "", LEFT(QD!H28,FIND(" ",QD!H28)+1)&" ("&QD!J28&")") -> 
A18: όχι πριν | B18: =Setup!$B$7 -> Α16 | C18: =IF(OR(QD!H29="bye",QD!H29="LWD"),"",LEFT(QD!H29,FIND(" ",QD!H29)+1)&" ("&QD!J29&")") ->  | E18: =IF(OR(QD!H30="bye",QD!H30="LWD"), "", LEFT(QD!H30,FIND(" ",QD!H30)+1)&" ("&QD!J30&")") -> 
B19: =Setup!$B$7 -> Α16 | C19: =IF(OR(QD!H31="bye",QD!H31="LWD"),"",LEFT(QD!H31,FIND(" ",QD!H31)+1)&" ("&QD!J31&")") ->  | E19: =IF(OR(QD!H32="bye",QD!H32="LWD"), "", LEFT(QD!H32,FIND(" ",QD!H32)+1)&" ("&QD!J32&")") -> 
B20: =Setup!$B$7 -> Α16 | C20: =IF(OR(QD!H33="bye",QD!H33="LWD"),"",LEFT(QD!H33,FIND(" ",QD!H33)+1)&" ("&QD!J33&")") ->  | E20: =IF(OR(QD!H34="bye",QD!H34="LWD"), "", LEFT(QD!H34,FIND(" ",QD!H34)+1)&" ("&QD!J34&")") -> 
B21: =Setup!$B$7 -> Α16 | C21: =IF(OR(QD!H35="bye",QD!H35="LWD"),"",LEFT(QD!H35,FIND(" ",QD!H35)+1)&" ("&QD!J35&")") ->  | E21: =IF(OR(QD!H36="bye",QD!H36="LWD"), "", LEFT(QD!H36,FIND(" ",QD!H36)+1)&" ("&QD!J36&")") -> 
A23: Πρόγραμμα Προκριματικών | E23: Round 2
A24: ΩΡΑ | B24: Κτγρ. | C24: Αθλητής-Σύλλογος | E24: Αθλητής-Σύλλογος
A25: Έναρξη | B25: =Setup!$B$7 -> Α16 | C25: =QD!L5 ->  | D25: =IF(OR(C25="",E25="")," ","-") ->  | E25: =QD!L7 -> 
B26: =Setup!$B$7 -> Α16 | C26: =QD!L9 ->  | E26: =QD!L11 -> 
B27: =Setup!$B$7 -> Α16 | C27: =QD!L13 ->  | E27: =QD!L15 -> 
B28: =Setup!$B$7 -> Α16 | C28: =QD!L17 ->  | E28: =QD!L19 -> 
A29: όχι πριν | B29: =Setup!$B$7 -> Α16 | C29: =QD!L21 ->  | E29: =QD!L23 -> 
B30: =Setup!$B$7 -> Α16 | C30: =QD!L25 ->  | E30: =QD!L27 -> 
B31: =Setup!$B$7 -> Α16 | C31: =QD!L29 ->  | E31: =QD!L31 -> 
B32: =Setup!$B$7 -> Α16 | C32: =QD!L33 ->  | E32: =QD!L35 -> 
A36: Πρόγραμμα αγώνων Κ.Τ. | E36: Round 1
A37: ΩΡΑ | B37: Κτγρ. | C37: Αθλητής-Σύλλογος | E37: Αθλητής-Σύλλογος
A38: Έναρξη | B38: =Setup!$B$7 -> Α16 | C38: =IF(OR(MD!J5="bye",MD!J5="LWD"),"",CONCATENATE(LEFT(MD!J5,FIND(" ",MD!J5)+1)," (",MD!L5,")")) -> ΚΩΣΤΑΡΑΣ Π (Ο.Α.ΠΕΤΡΟΥΠΟΛΗΣ) | D38: =IF(OR(C38="",E38="")," ","-") ->  | E38: =IF(OR(MD!J6="bye",MD!J6="LWD"), "", CONCATENATE(LEFT(MD!J6,FIND(" ",MD!J6)+1)," (",MD!L6,")")) -> 
B39: =Setup!$B$7 -> Α16 | C39: =IF(OR(MD!J7="bye",MD!J7="LWD"),"",CONCATENATE(LEFT(MD!J7,FIND(" ",MD!J7)+1)," (",MD!L7,")")) -> ΚΡΑΣΟΥΔΑΚΗΣ Ι (Ο.Α.ΧΑΝΙΩΝ) | D39: - | E39: =IF(OR(MD!J8="bye",MD!J8="LWD"), "", CONCATENATE(LEFT(MD!J8,FIND(" ",MD!J8)+1)," (",MD!L8,")")) -> ΚΥΡΙΑΚΑΚΗΣ-ΜΕΣΣΑΡΙΤΑΚΗΣ Γ (ΗΡΑΚΛΕΙΟ Ο.Α.& Α.)
B40: =Setup!$B$7 -> Α16 | C40: =IF(OR(MD!J9="bye",MD!J9="LWD"),"",CONCATENATE(LEFT(MD!J9,FIND(" ",MD!J9)+1)," (",MD!L9,")")) -> ΚΑΪΜΑΡΑΣ Χ (Α.Κ.Α.ΜΑΡΑΘΩΝΑ) | D40: - | E40: =IF(OR(MD!J10="bye",MD!J10="LWD"), "", CONCATENATE(LEFT(MD!J10,FIND(" ",MD!J10)+1)," (",MD!L10,")")) -> ΠΑΤΕΡΑΣ Δ (Α.Ο.ΤΑΤΟΪΟΥ)
B41: =Setup!$B$7 -> Α16 | C41: =IF(OR(MD!J11="bye",MD!J11="LWD"),"",CONCATENATE(LEFT(MD!J11,FIND(" ",MD!J11)+1)," (",MD!L11,")")) ->  | E41: =IF(OR(MD!J12="bye",MD!J12="LWD"), "", CONCATENATE(LEFT(MD!J12,FIND(" ",MD!J12)+1)," (",MD!L12,")")) -> ΑΡΕΤΑΚΗΣ Ι (Ο.Α.ΧΑΝΙΩΝ)
A42: όχι πριν | B42: =Setup!$B$7 -> Α16 | C42: =IF(OR(MD!J13="bye",MD!J13="LWD"),"",CONCATENATE(LEFT(MD!J13,FIND(" ",MD!J13)+1)," (",MD!L13,")")) -> ΝΑΟΥΜ Σ (Ο.Α.ΧΑΝΙΩΝ) | E42: =IF(OR(MD!J14="bye",MD!J14="LWD"), "", CONCATENATE(LEFT(MD!J14,FIND(" ",MD!J14)+1)," (",MD!L14,")")) -> 
B43: =Setup!$B$7 -> Α16 | C43: =IF(OR(MD!J15="bye",MD!J15="LWD"),"",CONCATENATE(LEFT(MD!J15,FIND(" ",MD!J15)+1)," (",MD!L15,")")) -> ΜΑΝΟΥΣΑΚΗΣ Κ (ΗΡΑΚΛΕΙΟ Ο.Α.& Α.) | D43: - | E43: =IF(OR(MD!J16="bye",MD!J16="LWD"), "", CONCATENATE(LEFT(MD!J16,FIND(" ",MD!J16)+1)," (",MD!L16,")")) -> ΣΤΑΥΡΟΥΛΑΚΗΣ Γ (ΗΡΑΚΛΕΙΟ Ο.Α.& Α.)
B44: =Setup!$B$7 -> Α16 | C44: =IF(OR(MD!J17="bye",MD!J17="LWD"),"",CONCATENATE(LEFT(MD!J17,FIND(" ",MD!J17)+1)," (",MD!L17,")")) -> ΓΙΑΚΟΥΜΑΚΗΣ Ι (Ο.Α.ΧΑΝΙΩΝ) | D44: - | E44: =IF(OR(MD!J18="bye",MD!J18="LWD"), "", CONCATENATE(LEFT(MD!J18,FIND(" ",MD!J18)+1)," (",MD!L18,")")) -> ΠΑΡΑΣΚΕΥΑΣ Μ (Α.Π.Μ.Σ.ΑΣΚΗΣΗ ΗΡΑΚΛΕΙΟΥ)
B45: =Setup!$B$7 -> Α16 | C45: =IF(OR(MD!J19="bye",MD!J19="LWD"),"",CONCATENATE(LEFT(MD!J19,FIND(" ",MD!J19)+1)," (",MD!L19,")")) -> ΑΓΓΕΛΟΠΟΥΛΟΣ Μ (ΠΕΥΚΗ Γ.ΚΑΛΟΒΕΛΩΝΗΣ) | D45: - | E45: =IF(OR(MD!J20="bye",MD!J20="LWD"), "", CONCATENATE(LEFT(MD!J20,FIND(" ",MD!J20)+1)," (",MD!L20,")")) -> ΦΡΙΣΗΡΑΣ Σ (Ο.Α.ΑΘΛΗΤ.ΠΑΙΔΕΙΑ)
A46: όχι πριν | B46: =Setup!$B$7 -> Α16 | C46: =IF(OR(MD!J21="bye",MD!J21="LWD"),"",CONCATENATE(LEFT(MD!J21,FIND(" ",MD!J21)+1)," (",MD!L21,")")) -> ΠΑΧΑΚΗΣ Ν (Ο.Α.ΑΘΗΝΩΝ) | E46: =IF(OR(MD!J22="bye",MD!J22="LWD"), "", CONCATENATE(LEFT(MD!J22,FIND(" ",MD!J22)+1)," (",MD!L22,")")) -> 
B47: =Setup!$B$7 -> Α16 | C47: =IF(OR(MD!J23="bye",MD!J23="LWD"),"",CONCATENATE(LEFT(MD!J23,FIND(" ",MD!J23)+1)," (",MD!L23,")")) -> ΚΡΟΝΤΗΡΑΣ Α (ΗΡΑΚΛΕΙΟ Ο.Α.& Α.) | D47: - | E47: =IF(OR(MD!J24="bye",MD!J24="LWD"), "", CONCATENATE(LEFT(MD!J24,FIND(" ",MD!J24)+1)," (",MD!L24,")")) -> ΚΟΥΚΟΥΛΙΘΡΑΣ Ι (Ο.Α.ΚΕΡΑΤΣΙΝΙΟΥ)
B48: =Setup!$B$7 -> Α16 | C48: =IF(OR(MD!J25="bye",MD!J25="LWD"),"",CONCATENATE(LEFT(MD!J25,FIND(" ",MD!J25)+1)," (",MD!L25,")")) -> ΤΣΟΜΛΕΚΤΣΟΓΛΟΥ Ν (Α.Ο.Α.ΦΙΛΟΘΕΗΣ) | D48: - | E48: =IF(OR(MD!J26="bye",MD!J26="LWD"), "", CONCATENATE(LEFT(MD!J26,FIND(" ",MD!J26)+1)," (",MD!L26,")")) -> ΣΑΚΕΛΛΑΡΙΔΗΣ Μ (Ο.Α.ΑΓΙΑΣ ΠΑΡΑΣΚΕΥΗΣ)
B49: =Setup!$B$7 -> Α16 | C49: =IF(OR(MD!J27="bye",MD!J27="LWD"),"",CONCATENATE(LEFT(MD!J27,FIND(" ",MD!J27)+1)," (",MD!L27,")")) ->  | E49: =IF(OR(MD!J28="bye",MD!J28="LWD"), "", CONCATENATE(LEFT(MD!J28,FIND(" ",MD!J28)+1)," (",MD!L28,")")) -> ΠΙΤΣΙΝΗΣ Δ (Ο.Α.ΚΕΡΑΤΣΙΝΙΟΥ)
A50: όχι πριν | B50: =Setup!$B$7 -> Α16 | C50: =IF(OR(MD!J29="bye",MD!J29="LWD"),"",CONCATENATE(LEFT(MD!J29,FIND(" ",MD!J29)+1)," (",MD!L29,")")) -> ΣΗΜΑΙΟΦΟΡΙΔΗΣ Χ (ΠΕΥΚΗ Γ.ΚΑΛΟΒΕΛΩΝΗΣ) | D50: - | E50: =IF(OR(MD!J30="bye",MD!J30="LWD"), "", CONCATENATE(LEFT(MD!J30,FIND(" ",MD!J30)+1)," (",MD!L30,")")) -> ΚΟΚΟΤΣΑΚΗΣ Α (Α.Ο.Α.ΗΛΙΟΥΠΟΛΗΣ)
B51: =Setup!$B$7 -> Α16 | C51: =IF(OR(MD!J31="bye",MD!J31="LWD"),"",CONCATENATE(LEFT(MD!J31,FIND(" ",MD!J31)+1)," (",MD!L31,")")) -> ΚΟΝΤΟΓΙΩΡΓΑΚΗΣ Ι (Ο.Α.ΣΗΤΕΙΑΣ) | D51: - | E51: =IF(OR(MD!J32="bye",MD!J32="LWD"), "", CONCATENATE(LEFT(MD!J32,FIND(" ",MD!J32)+1)," (",MD!L32,")")) -> ΝΙΚΟΛΑΚΑΚΗΣ Ι (ΗΡΑΚΛΕΙΟ Ο.Α.& Α.)
B52: =Setup!$B$7 -> Α16 | C52: =IF(OR(MD!J33="bye",MD!J33="LWD"),"",CONCATENATE(LEFT(MD!J33,FIND(" ",MD!J33)+1)," (",MD!L33,")")) -> ΠΗΛΙΟΥΝΗΣ Μ (Ο.Α. ΑΘΗΝΩΝ) | D52: - | E52: =IF(OR(MD!J34="bye",MD!J34="LWD"), "", CONCATENATE(LEFT(MD!J34,FIND(" ",MD!J34)+1)," (",MD!L34,")")) -> ΠΑΠΑΚΥΡΙΑΚΟΥ Μ (Α.Ο.ΒΑΡΗΣ ΑΝΑΓΥΡΟΥΣ)
B53: =Setup!$B$7 -> Α16 | C53: =IF(OR(MD!J35="bye",MD!J35="LWD"),"",CONCATENATE(LEFT(MD!J35,FIND(" ",MD!J35)+1)," (",MD!L35,")")) ->  | E53: =IF(OR(MD!J36="bye",MD!J36="LWD"), "", CONCATENATE(LEFT(MD!J36,FIND(" ",MD!J36)+1)," (",MD!L36,")")) -> ΚΑΠΙΡΗΣ Σ (Α.Ο.Α.ΗΛΙΟΥΠΟΛΗΣ)
A55: Πρόγραμμα αγώνων Κ.Τ. | E55: Round 2
A56: ΩΡΑ | B56: Κτγρ. | C56: Αθλητής-Σύλλογος | E56: Αθλητής-Σύλλογος
A57: Έναρξη | B57: =Setup!$B$7 -> Α16 | C57: =IF(MD!M5="", "", IF(MD!M5=1, CONCATENATE(LEFT(MD!J5,FIND(" ",MD!J5)+1)," (",MD!L5,")"),CONCATENATE(LEFT(MD!J6,FIND(" ",MD!J6)+1)," (",MD!L6,")"))) -> ΚΩΣΤΑΡΑΣ Π (Ο.Α.ΠΕΤΡΟΥΠΟΛΗΣ) | D57: =IF(OR(C57="",E57="")," ","-") -> - | E57: =IF(MD!M7="", "", IF(MD!M7=1, CONCATENATE(LEFT(MD!J7,FIND(" ",MD!J7)+1)," (",MD!L7,")"),CONCATENATE(LEFT(MD!J8,FIND(" ",MD!J8)+1)," (",MD!L8,")"))) -> ΚΥΡΙΑΚΑΚΗΣ-ΜΕΣΣΑΡΙΤΑΚΗΣ Γ (ΗΡΑΚΛΕΙΟ Ο.Α.& Α.)
B58: =Setup!$B$7 -> Α16 | C58: =IF(MD!M9="", "", IF(MD!M9=1, CONCATENATE(LEFT(MD!J9,FIND(" ",MD!J9)+1)," (",MD!L9,")"),CONCATENATE(LEFT(MD!J10,FIND(" ",MD!J10)+1)," (",MD!L10,")"))) -> ΚΑΪΜΑΡΑΣ Χ (Α.Κ.Α.ΜΑΡΑΘΩΝΑ) | D58: - | E58: =IF(MD!M11="", "", IF(MD!M11=1, CONCATENATE(LEFT(MD!J11,FIND(" ",MD!J11)+1)," (",MD!L11,")"),CONCATENATE(LEFT(MD!J12,FIND(" ",MD!J12)+1)," (",MD!L12,")"))) -> ΑΡΕΤΑΚΗΣ Ι (Ο.Α.ΧΑΝΙΩΝ)
B59: =Setup!$B$7 -> Α16 | C59: =IF(MD!M13="", "", IF(MD!M13=1, CONCATENATE(LEFT(MD!J13,FIND(" ",MD!J13)+1)," (",MD!L13,")"),CONCATENATE(LEFT(MD!J14,FIND(" ",MD!J14)+1)," (",MD!L14,")"))) -> ΝΑΟΥΜ Σ (Ο.Α.ΧΑΝΙΩΝ) | D59: - | E59: =IF(MD!M15="", "", IF(MD!M15=1, CONCATENATE(LEFT(MD!J15,FIND(" ",MD!J15)+1)," (",MD!L15,")"),CONCATENATE(LEFT(MD!J16,FIND(" ",MD!J16)+1)," (",MD!L16,")"))) -> ΜΑΝΟΥΣΑΚΗΣ Κ (ΗΡΑΚΛΕΙΟ Ο.Α.& Α.)
B60: =Setup!$B$7 -> Α16 | C60: =IF(MD!M17="", "", IF(MD!M17=1, CONCATENATE(LEFT(MD!J17,FIND(" ",MD!J17)+1)," (",MD!L17,")"),CONCATENATE(LEFT(MD!J18,FIND(" ",MD!J18)+1)," (",MD!L18,")"))) -> ΓΙΑΚΟΥΜΑΚΗΣ Ι (Ο.Α.ΧΑΝΙΩΝ) | D60: - | E60: =IF(MD!M19="", "", IF(MD!M19=1, CONCATENATE(LEFT(MD!J19,FIND(" ",MD!J19)+1)," (",MD!L19,")"),CONCATENATE(LEFT(MD!J20,FIND(" ",MD!J20)+1)," (",MD!L20,")"))) -> ΦΡΙΣΗΡΑΣ Σ (Ο.Α.ΑΘΛΗΤ.ΠΑΙΔΕΙΑ)
A61: όχι πριν | B61: =Setup!$B$7 -> Α16 | C61: =IF(MD!M21="", "", IF(MD!M21=1, CONCATENATE(LEFT(MD!J21,FIND(" ",MD!J21)+1)," (",MD!L21,")"),CONCATENATE(LEFT(MD!J22,FIND(" ",MD!J22)+1)," (",MD!L22,")"))) -> ΠΑΧΑΚΗΣ Ν (Ο.Α.ΑΘΗΝΩΝ) | D61: - | E61: =IF(MD!M23="", "", IF(MD!M23=1, CONCATENATE(LEFT(MD!J23,FIND(" ",MD!J23)+1)," (",MD!L23,")"),CONCATENATE(LEFT(MD!J24,FIND(" ",MD!J24)+1)," (",MD!L24,")"))) -> ΚΟΥΚΟΥΛΙΘΡΑΣ Ι (Ο.Α.ΚΕΡΑΤΣΙΝΙΟΥ)
B62: =Setup!$B$7 -> Α16 | C62: =IF(MD!M25="", "", IF(MD!M25=1, CONCATENATE(LEFT(MD!J25,FIND(" ",MD!J25)+1)," (",MD!L25,")"),CONCATENATE(LEFT(MD!J26,FIND(" ",MD!J26)+1)," (",MD!L26,")"))) -> ΣΑΚΕΛΛΑΡΙΔΗΣ Μ (Ο.Α.ΑΓΙΑΣ ΠΑΡΑΣΚΕΥΗΣ) | D62: - | E62: =IF(MD!M27="", "", IF(MD!M27=1, CONCATENATE(LEFT(MD!J27,FIND(" ",MD!J27)+1)," (",MD!L27,")"),CONCATENATE(LEFT(MD!J28,FIND(" ",MD!J28)+1)," (",MD!L28,")"))) -> ΠΙΤΣΙΝΗΣ Δ (Ο.Α.ΚΕΡΑΤΣΙΝΙΟΥ)
B63: =Setup!$B$7 -> Α16 | C63: =IF(MD!M29="", "", IF(MD!M29=1, CONCATENATE(LEFT(MD!J29,FIND(" ",MD!J29)+1)," (",MD!L29,")"),CONCATENATE(LEFT(MD!J30,FIND(" ",MD!J30)+1)," (",MD!L30,")"))) -> ΣΗΜΑΙΟΦΟΡΙΔΗΣ Χ (ΠΕΥΚΗ Γ.ΚΑΛΟΒΕΛΩΝΗΣ) | D63: - | E63: =IF(MD!M31="", "", IF(MD!M31=1, CONCATENATE(LEFT(MD!J31,FIND(" ",MD!J31)+1)," (",MD!L31,")"),CONCATENATE(LEFT(MD!J32,FIND(" ",MD!J32)+1)," (",MD!L32,")"))) -> ΝΙΚΟΛΑΚΑΚΗΣ Ι (ΗΡΑΚΛΕΙΟ Ο.Α.& Α.)
B64: =Setup!$B$7 -> Α16 | C64: =IF(MD!M33="", "", IF(MD!M33=1, CONCATENATE(LEFT(MD!J33,FIND(" ",MD!J33)+1)," (",MD!L33,")"),CONCATENATE(LEFT(MD!J34,FIND(" ",MD!J34)+1)," (",MD!L34,")"))) -> ΠΗΛΙΟΥΝΗΣ Μ (Ο.Α. ΑΘΗΝΩΝ) | D64: - | E64: =IF(MD!M35="", "", IF(MD!M35=1, CONCATENATE(LEFT(MD!J35,FIND(" ",MD!J35)+1)," (",MD!L35,")"),CONCATENATE(LEFT(MD!J36,FIND(" ",MD!J36)+1)," (",MD!L36,")"))) -> ΚΑΠΙΡΗΣ Σ (Α.Ο.Α.ΗΛΙΟΥΠΟΛΗΣ)
A73: Πρόγραμμα αγώνων Κ.Τ. (md16) | E73: Round 1
A74: ΩΡΑ | B74: Κτγρ. | C74: Αθλητής-Σύλλογος | E74: Αθλητής-Σύλλογος
A75: Έναρξη | B75: =Setup!$B$7 -> Α16 | C75: =IF(OR('MD16'!J5="bye",'MD16'!J5="LWD"),"",CONCATENATE(LEFT('MD16'!J5,FIND(" ",'MD16'!J5)+1)," (",'MD16'!L5,")")) ->  | D75: =IF(OR(C75="",E75="")," ","-") ->  | E75: =IF(OR('MD16'!J6="bye",'MD16'!J6="LWD"), "", CONCATENATE(LEFT('MD16'!J6,FIND(" ",'MD16'!J6)+1)," (",'MD16'!L6,")")) -> 
B76: =Setup!$B$7 -> Α16 | C76: =IF(OR('MD16'!J7="bye",'MD16'!J7="LWD"),"",CONCATENATE(LEFT('MD16'!J7,FIND(" ",'MD16'!J7)+1)," (",'MD16'!L7,")")) ->  | E76: =IF(OR('MD16'!J8="bye",'MD16'!J8="LWD"), "", CONCATENATE(LEFT('MD16'!J8,FIND(" ",'MD16'!J8)+1)," (",'MD16'!L8,")")) -> 
B77: =Setup!$B$7 -> Α16 | C77: =IF(OR('MD16'!J9="bye",'MD16'!J9="LWD"),"",CONCATENATE(LEFT('MD16'!J9,FIND(" ",'MD16'!J9)+1)," (",'MD16'!L9,")")) ->  | E77: =IF(OR('MD16'!J10="bye",'MD16'!J10="LWD"), "", CONCATENATE(LEFT('MD16'!J10,FIND(" ",'MD16'!J10)+1)," (",'MD16'!L10,")")) -> 
B78: =Setup!$B$7 -> Α16 | C78: =IF(OR('MD16'!J11="bye",'MD16'!J11="LWD"),"",CONCATENATE(LEFT('MD16'!J11,FIND(" ",'MD16'!J11)+1)," (",'MD16'!L11,")")) ->  | E78: =IF(OR('MD16'!J12="bye",'MD16'!J12="LWD"), "", CONCATENATE(LEFT('MD16'!J12,FIND(" ",'MD16'!J12)+1)," (",'MD16'!L12,")")) -> 
A79: όχι πριν | B79: =Setup!$B$7 -> Α16 | C79: =IF(OR('MD16'!J13="bye",'MD16'!J13="LWD"),"",CONCATENATE(LEFT('MD16'!J13,FIND(" ",'MD16'!J13)+1)," (",'MD16'!L13,")")) ->  | E79: =IF(OR('MD16'!J14="bye",'MD16'!J14="LWD"), "", CONCATENATE(LEFT('MD16'!J14,FIND(" ",'MD16'!J14)+1)," (",'MD16'!L14,")")) -> 
B80: =Setup!$B$7 -> Α16 | C80: =IF(OR('MD16'!J15="bye",'MD16'!J15="LWD"),"",CONCATENATE(LEFT('MD16'!J15,FIND(" ",'MD16'!J15)+1)," (",'MD16'!L15,")")) ->  | E80: =IF(OR('MD16'!J16="bye",'MD16'!J16="LWD"), "", CONCATENATE(LEFT('MD16'!J16,FIND(" ",'MD16'!J16)+1)," (",'MD16'!L16,")")) -> 
B81: =Setup!$B$7 -> Α16 | C81: =IF(OR('MD16'!J17="bye",'MD16'!J17="LWD"),"",CONCATENATE(LEFT('MD16'!J17,FIND(" ",'MD16'!J17)+1)," (",'MD16'!L17,")")) ->  | E81: =IF(OR('MD16'!J18="bye",'MD16'!J18="LWD"), "", CONCATENATE(LEFT('MD16'!J18,FIND(" ",'MD16'!J18)+1)," (",'MD16'!L18,")")) -> 
B82: =Setup!$B$7 -> Α16 | C82: =IF(OR('MD16'!J19="bye",'MD16'!J19="LWD"),"",CONCATENATE(LEFT('MD16'!J19,FIND(" ",'MD16'!J19)+1)," (",'MD16'!L19,")")) ->  | E82: =IF(OR('MD16'!J20="bye",'MD16'!J20="LWD"), "", CONCATENATE(LEFT('MD16'!J20,FIND(" ",'MD16'!J20)+1)," (",'MD16'!L20,")")) -> 
A84: Πρόγραμμα αγώνων Κ.Τ. (md16) | E84: Round 2
A85: ΩΡΑ | B85: Κτγρ. | C85: Αθλητής-Σύλλογος | E85: Αθλητής-Σύλλογος
A86: Έναρξη | B86: =Setup!$B$7 -> Α16 | C86: =IF('MD16'!M5="", "", IF('MD16'!M5=1, CONCATENATE(LEFT('MD16'!J5,FIND(" ",'MD16'!J5)+1)," (",'MD16'!L5,")"),CONCATENATE(LEFT('MD16'!J6,FIND(" ",'MD16'!J6)+1)," (",'MD16'!L6,")"))) ->  | D86: =IF(OR(C86="",E86="")," ","-") ->  | E86: =IF('MD16'!M7="", "", IF('MD16'!M7=1, CONCATENATE(LEFT('MD16'!J7,FIND(" ",'MD16'!J7)+1)," (",'MD16'!L7,")"),CONCATENATE(LEFT('MD16'!J8,FIND(" ",'MD16'!J8)+1)," (",'MD16'!L8,")"))) -> 
B87: =Setup!$B$7 -> Α16 | C87: =IF('MD16'!M9="", "", IF('MD16'!M9=1, CONCATENATE(LEFT('MD16'!J9,FIND(" ",'MD16'!J9)+1)," (",'MD16'!L9,")"),CONCATENATE(LEFT('MD16'!J10,FIND(" ",'MD16'!J10)+1)," (",'MD16'!L10,")"))) ->  | D87: =IF(OR(C87="",E87="")," ","-") ->  | E87: =IF('MD16'!M11="", "", IF('MD16'!M11=1, CONCATENATE(LEFT('MD16'!J11,FIND(" ",'MD16'!J11)+1)," (",'MD16'!L11,")"),CONCATENATE(LEFT('MD16'!J12,FIND(" ",'MD16'!J12)+1)," (",'MD16'!L12,")"))) -> 
B88: =Setup!$B$7 -> Α16 | C88: =IF('MD16'!M13="", "", IF('MD16'!M13=1, CONCATENATE(LEFT('MD16'!J13,FIND(" ",'MD16'!J13)+1)," (",'MD16'!L13,")"),CONCATENATE(LEFT('MD16'!J14,FIND(" ",'MD16'!J14)+1)," (",'MD16'!L14,")"))) ->  | D88: =IF(OR(C88="",E88="")," ","-") ->  | E88: =IF('MD16'!M15="", "", IF('MD16'!M15=1, CONCATENATE(LEFT('MD16'!J15,FIND(" ",'MD16'!J15)+1)," (",'MD16'!L15,")"),CONCATENATE(LEFT('MD16'!J16,FIND(" ",'MD16'!J16)+1)," (",'MD16'!L16,")"))) -> 
B89: =Setup!$B$7 -> Α16 | C89: =IF('MD16'!M17="", "", IF('MD16'!M17=1, CONCATENATE(LEFT('MD16'!J17,FIND(" ",'MD16'!J17)+1)," (",'MD16'!L17,")"),CONCATENATE(LEFT('MD16'!J18,FIND(" ",'MD16'!J18)+1)," (",'MD16'!L18,")"))) ->  | D89: =IF(OR(C89="",E89="")," ","-") ->  | E89: =IF('MD16'!M19="", "", IF('MD16'!M19=1, CONCATENATE(LEFT('MD16'!J19,FIND(" ",'MD16'!J19)+1)," (",'MD16'!L19,")"),CONCATENATE(LEFT('MD16'!J20,FIND(" ",'MD16'!J20)+1)," (",'MD16'!L20,")"))) -> 
A93: Don't Change this Worksheet !

Sheet tmp
A1: RndIndx | B1: random | C1: FixRandom | E1: α/α | F1: seed | G1: ByeOrder | I1: ΠΡΟΚΡΙΜΑΤΙΚΑ E1, E2 (32 για 8)
A2: 1 | B2: =RAND()/25 -> 0.008576373271 | C2: 0.02445798149 | E2: 1 | F2: 1 | K2: 17-32 | L2: 9-16 | M2: 5-8 | N2: 3-4 | O2: 2ος | P2: 1ος | S2: 17-32 | T2: 9-16 | U2: 5-8 | V2: 3-4 | W2: 2ος | X2: 1ος
A3: 2 | B3: =RAND()/25 -> 0.01135425434 | C3: 0.004064698854 | E3: 2 | G3: 1 | I3: E1 | J3: E1-12 | K3: 1 | L3: 2 | M3: 2 | N3: 0 | O3: 0 | P3: 0 | Q3: E1 | R3: E1-12 | S3: 1 | T3: 1 | U3: 0 | V3: 0 | W3: 0 | X3: 0
A4: 3 | B4: =RAND()/25 -> 0.03755889568 | C4: 0.03530910226 | E4: 3 | J4: E1-14 | K4: 3 | L4: 4 | M4: 4 | N4: 0 | O4: 0 | P4: 0 | R4: E1-14 | S4: 3 | T4: 1 | U4: 0 | V4: 0 | W4: 0 | X4: 0
A5: 4 | B5: =RAND()/25 -> 0.01123280182 | C5: 0.008287160047 | E5: 4 | G5: 15 | J5: E1-16 | K5: 6 | L5: 8 | M5: 8 | N5: 0 | O5: 0 | P5: 0 | R5: E1-16 | S5: 6 | T5: 2 | U5: 0 | V5: 0 | W5: 0 | X5: 0
A6: 5 | B6: =RAND()/25 -> 0.004568417717 | C6: 0.007596116889 | E6: 5 | J6: E1-18 | K6: 7.5 | L6: 10 | M6: 10 | R6: E1-18 | S6: 7.5 | T6: 2.5 | U6: 0 | V6: 0 | W6: 0 | X6: 0
A7: 6 | B7: 0.02080714975 | C7: 0.01913579649 | E7: 6 | G7: 9 | I7: E2 | J7: E2-12 | K7: 0.3 | L7: 0.5 | M7: 0.5 | N7: 0 | O7: 0 | P7: 0 | Q7: E2 | R7: E2-12 | S7: 0.3 | T7: 0.2 | U7: 0 | V7: 0 | W7: 0 | X7: 0
A8: 7 | B8: 0.02161818137 | C8: 0.005310863869 | E8: 7 | G8: 5 | J8: E2-14 | K8: 1 | L8: 2 | M8: 2 | N8: 0 | O8: 0 | P8: 0 | R8: E2-14 | S8: 1 | T8: 1 | U8: 0 | V8: 0 | W8: 0 | X8: 0
A9: 8 | B9: 0.0004704290377 | C9: 0.02377674708 | E9: 8 | F9: 5 | J9: E2-16 | K9: 2 | L9: 4 | M9: 4 | N9: 0 | O9: 0 | P9: 0 | R9: E2-16 | S9: 2 | T9: 2 | U9: 0 | V9: 0 | W9: 0 | X9: 0
A10: 9 | B10: 0.01002712002 | C10: 0.02882106887 | E10: 9 | F10: 3
A11: 10 | B11: 0.03272539469 | C11: 0.01854412412 | E11: 10 | G11: 3
A12: 11 | B12: 0.0228306438 | C12: 0.001472729457 | E12: 11 | I12: ΚΥΡΙΩΣ ΤΑΜΠΛΟ E1, E2 & E3
A13: 12 | B13: 0.02469768034 | C13: 0.00596016482 | E13: 12 | G13: 13 | K13: 17-32 | L13: 9-16 | M13: 5-8 | N13: 3-4 | O13: 2ος | P13: 1ος | S13: 17-32 | T13: 9-16 | U13: 5-8 | V13: 3-4 | W13: 2ος | X13: 1ος
A14: 13 | B14: 0.02344186868 | C14: 0.004384647078 | E14: 13 | I14: E1 | J14: E1-12 | K14: 7 | L14: 10 | M14: 14 | N14: 21 | O14: 35 | P14: 42 | Q14: E1 | R14: E1-12 | S14: 7 | T14: 3 | U14: 4 | V14: 7 | W14: 14 | X14: 7
A15: 14 | B15: 0.03408625305 | C15: 0.0005860269902 | E15: 14 | G15: 11 | J15: E1-14 | K15: 10 | L15: 15 | M15: 20 | N15: 30 | O15: 50 | P15: 60 | R15: E1-14 | S15: 10 | T15: 5 | U15: 5 | V15: 10 | W15: 20 | X15: 10
A16: 15 | B16: 0.03056573138 | C16: 0.01593985267 | E16: 15 | G16: 7 | J16: E1-16 | K16: 20 | L16: 30 | M16: 40 | N16: 60 | O16: 100 | P16: 120 | R16: E1-16 | S16: 20 | T16: 10 | U16: 10 | V16: 20 | W16: 40 | X16: 20
A17: 16 | B17: 0.03316128887 | C17: 0.03712715495 | E17: 16 | F17: 6 | J17: E1-18 | K17: 25 | L17: 37 | M17: 50 | N17: 75 | O17: 125 | P17: 150 | R17: E1-18 | S17: 25 | T17: 12 | U17: 13 | V17: 25 | W17: 50 | X17: 25
A18: 17 | B18: 0.01389323402 | C18: 0.03614321353 | E18: 17 | F18: 7 | I18: E2 | J18: E2-12 | K18: 4 | L18: 5 | M18: 7 | N18: 10 | O18: 15 | P18: 18 | Q18: E2 | R18: E2-12 | S18: 4 | T18: 1 | U18: 2 | V18: 3 | W18: 5 | X18: 3
A19: 18 | B19: 0.01317577796 | C19: 0.02253700254 | E19: 18 | G19: 6 | J19: E2-14 | K19: 5 | L19: 8 | M19: 10 | N19: 15 | O19: 25 | P19: 30 | R19: E2-14 | S19: 5 | T19: 3 | U19: 2 | V19: 5 | W19: 10 | X19: 5
A20: 19 | B20: 0.02354506827 | C20: 0.005826776004 | E20: 19 | J20: E2-16 | K20: 10 | L20: 15 | M20: 20 | N20: 30 | O20: 50 | P20: 60 | R20: E2-16 | S20: 10 | T20: 5 | U20: 5 | V20: 10 | W20: 20 | X20: 10
A21: 20 | B21: 0.02599411321 | C21: 0.01321564021 | E21: 20 | G21: 12 | I21: E3 | J21: E3-12 | K21: 0.5 | L21: 2 | M21: 3 | N21: 4 | O21: 7 | P21: 8 | Q21: E3 | R21: E3-12 | S21: 0.5 | T21: 1.5 | U21: 1 | V21: 1 | W21: 3 | X21: 1
A22: 21 | B22: 0.02371874027 | C22: 0.005744889394 | E22: 21 | J22: E3-14 | K22: 2 | L22: 3 | M22: 4 | N22: 6 | O22: 10 | P22: 12 | R22: E3-14 | S22: 2 | T22: 1 | U22: 1 | V22: 2 | W22: 4 | X22: 2
A23: 22 | B23: 0.03637301658 | C23: 0.02747696241 | E23: 22 | G23: 14 | J23: E3-16 | K23: 4 | L23: 6 | M23: 8 | N23: 12 | O23: 20 | P23: 24 | R23: E3-16 | S23: 4 | T23: 2 | U23: 2 | V23: 4 | W23: 8 | X23: 4
A24: 23 | B24: 0.03202315603 | C24: 0.03927507168 | E24: 23 | G24: 4
A25: 24 | B25: 0.02306493431 | C25: 0.02216136353 | E25: 24 | F25: 4
A26: 25 | B26: 0.01827013671 | C26: 0.01287607778 | E26: 25 | F26: 8 | J26: ΔΙΠΛΑ E1, E2
A27: 26 | B27: 0.01583100121 | C27: 0.03864590416 | E27: 26 | G27: 8 | L27: 9-16 | M27: 5-8 | N27: 3-4 | O27: 2ος | P27: 1ος | S27: 9-16 | T27: 5-8 | U27: 3-4 | V27: 2ος | W27: 1ος
A28: 27 | B28: 0.009871380369 | C28: 0.02461311956 | E28: 27 | J28: E1 | K28: E1-12 | L28: 3 | M28: 4 | N28: 5 | O28: 9 | P28: 11 | Q28: E1 | R28: E1-12 | S28: 3 | T28: 1 | U28: 1 | V28: 4 | W28: 2
A29: 28 | B29: 0.001544514675 | C29: 0.01462874424 | E29: 28 | G29: 10 | K29: E1-14 | L29: 4 | M29: 5 | N29: 8 | O29: 13 | P29: 15 | R29: E1-14 | S29: 4 | T29: 1 | U29: 3 | V29: 5 | W29: 2
A30: 29 | B30: 0.02598620165 | C30: 0.0119785416 | E30: 29 | K30: E1-16 | L30: 8 | M30: 10 | N30: 15 | O30: 25 | P30: 30 | R30: E1-16 | S30: 8 | T30: 2 | U30: 5 | V30: 10 | W30: 5
A31: 30 | B31: 0.0002496869026 | C31: 0.0158293262 | E31: 30 | G31: 16 | K31: E1-18 | L31: 9 | M31: 12 | N31: 19 | O31: 31 | P31: 37 | R31: E1-18 | S31: 9 | T31: 3 | U31: 7 | V31: 12 | W31: 6
A32: 31 | B32: 0.001728689871 | C32: 0.004751325555 | E32: 31 | G32: 2 | J32: E2 | K32: E2-12 | L32: 1 | M32: 2 | N32: 3 | O32: 4 | P32: 8 | Q32: E2 | R32: E2-12 | S32: 1 | T32: 1 | U32: 1 | V32: 1 | W32: 4
A33: 32 | B33: 0.03294714014 | C33: 0.027403534 | E33: 32 | F33: 2 | K33: E2-14 | L33: 2 | M33: 3 | N33: 4 | O33: 6 | P33: 8 | R33: E2-14 | S33: 2 | T33: 1 | U33: 1 | V33: 2 | W33: 2
K34: E2-16 | L34: 4 | M34: 6 | N34: 8 | O34: 12 | P34: 16 | R34: E2-16 | S34: 4 | T34: 2 | U34: 2 | V34: 4 | W34: 4
